{"text_format":"1","workbook":"xlsx","n_sheets":19,"sheets":["PORTADA","MENU","SUELDOS","OTROR","IEXENTO","PREVISIONS","GENERALES (2)","NOMINA","CONCENTRADO","AJUSTE SUELDOS","ERRORESPDSAT","ERRORESSE","DATOS","CORRECCIONE","TARIFA","TARIFAS","CATALOGO","c_Estado","GENERALES"],"not_rendered":{"charts":0,"images":23,"macros":1,"external_links":1,"defined_names":54,"comments":1,"pivot_tables":0},"unopened":[],"bounds":{"document_bytes":16777216,"sheet_cells":100000,"rows_first":2000,"rows_last":500,"rows_between":2000,"halvings":0,"cell_chars":16384,"cell_head_chars":4096},"cells_cut":0,"cells_raw":0,"read":"whole","date_system":"1900"}

{"sheet":"PORTADA","index":0,"n_rows":198,"n_cols":13,"rows_kept":198,"cut":false,"hidden":false,"merged":[[0,0,30,9]]}
[]
[]
[]
[]
[]
[]
[]
[]
[]
[]
[]
[]
[]
[]
[]
[]
[]
[]
[]
[]
[]
[]
[]
[]
[]
[]
[]
[]
[]
[]
[]
[]
[]
[]
[]
[]
[]
[]
[]
[]
[]
[]
[]
[]
[]
[]
[]
[]
[]
[]
[]
[]
[]
[]
[]
[]
[]
[]
[]
[]
[]
[]
[]
[]
[]
[]
[]
[]
[]
[]
[]
[]
[]
[]
[]
[]
[]
[]
[]
[]
[]
[]
[]
[]
[]
[]
[]
[]
[]
[]
[]
[]
[]
[]
[]
[]
[]
[]
[]
[]
[]
[]
[]
[]
[]
[]
[]
[]
[]
[]
[]
[]
[]
[]
[]
[]
[]
[]
[]
[]
[]
[]
[]
[]
[null,null,null,null,null,null,null,null,null,null,null,null,"Range(1)"]
[]
[]
[]
[]
[]
[]
[]
[]
[]
[]
[]
[]
[]
[]
[]
[]
[]
[]
[]
[]
[]
[]
[]
[]
[]
[]
[]
[]
[]
[]
[]
[]
[]
[]
[]
[]
[]
[]
[]
[]
[]
[]
[]
[]
[]
[]
[]
[]
[]
[]
[]
[]
[]
[]
[]
[]
[]
[]
[]
[]
[]
[]
[]
[]
[]
[]
[]
[]
[]
[]
[]
[]
[null,null,null,null,null,null,null,null,null,null,"Len@25"]

{"sheet":"MENU","index":1,"n_rows":23,"n_cols":3,"rows_kept":23,"cut":false,"hidden":true,"merged":[]}
[]
[]
[]
[]
[]
[]
[null,"Descripción","Nombre de la hoja"]
[null,"Régimen de sueldos y salarios","SUELDOS"]
[null,"Régimen de indemnización y asimilados a salarios","OTROR"]
[null,"Ingresos exentos","IEXENTO"]
[null,"Determinación de la previsión social","PREVISIONS"]
[null,"Determinación del salario base de cotización","SBC_SBA_SDI"]
[null,"Cuotas IMSS","CUOTASIMSS"]
[null,"Determinación retención ISR-IMSS","ISRIMSS"]
[null,"Importar XML de nómina","NOMINA"]
[null,"Consulta de CFDI de nómina","RECIBO"]
[null,"Concentrado de pago de nómina","CONCENTRADO"]
[null,"Acumulado por trabajador","ACUMULADOT"]
[null,"Determinación del ajuste de sueldos y salarios","AJUSTE SUELDOS"]
[null,"Importar archivo de texto con errores CFDI de nómina","ERRORESPDSAT"]
[null,"Importar archivo de texto subsidio al empleo estimado","ERRORESSSE"]
[null,"Fundamento corrección CFDI de nómina","CORRECCIONE"]
[null,"Catálogo de estados","c_Estado"]

{"sheet":"SUELDOS","index":2,"n_rows":195,"n_cols":8,"rows_kept":195,"cut":false,"hidden":true,"merged":[[193,1,194,1],[193,2,194,2],[193,3,194,3],[193,4,194,4],[186,1,187,1],[186,2,187,2],[186,3,187,3],[186,4,187,4],[190,1,191,1],[190,2,191,2],[190,3,191,3],[190,4,191,4],[182,1,183,1],[182,2,183,2],[182,3,183,3],[182,4,183,4],[184,1,185,1],[184,2,185,2],[184,3,185,3],[184,4,185,4],[175,1,176,1],[175,2,176,2],[175,3,176,3],[175,4,176,4],[177,1,178,1],[177,2,178,2],[177,3,178,3],[177,4,178,4],[171,1,172,1],[171,2,172,2],[171,3,172,3],[171,4,172,4],[173,1,174,1],[173,2,174,2],[173,3,174,3],[173,4,174,4],[167,1,168,1],[167,2,168,2],[167,3,168,3],[167,4,168,4],[169,1,170,1],[169,2,170,2],[169,3,170,3],[169,4,170,4],[163,1,164,1],[163,2,164,2],[163,3,164,3],[163,4,164,4],[165,1,166,1],[165,2,166,2],[165,3,166,3],[165,4,166,4],[159,1,160,1],[159,2,160,2],[159,3,160,3],[159,4,160,4],[161,1,162,1],[161,2,162,2],[161,3,162,3],[161,4,162,4],[154,1,155,1],[154,2,155,2],[154,3,155,3],[154,4,155,4],[157,1,158,1],[157,2,158,2],[157,3,158,3],[157,4,158,4],[150,1,151,1],[150,2,151,2],[150,3,151,3],[150,4,151,4],[152,1,153,1],[152,2,153,2],[152,3,153,3],[152,4,153,4],[146,1,147,1],[146,2,147,2],[146,3,147,3],[146,4,147,4],[148,1,149,1],[148,2,149,2],[148,3,149,3],[148,4,149,4],[141,1,142,1],[141,2,142,2],[141,3,142,3],[141,4,142,4],[143,1,144,1],[143,2,144,2],[143,3,144,3],[143,4,144,4],[137,1,138,1],[137,2,138,2],[137,3,138,3],[137,4,138,4],[139,1,140,1],[139,2,140,2],[139,3,140,3],[139,4,140,4],[3,1,3,5],[41,4,41,5],[133,1,136,1],[133,2,136,2],[133,3,136,3],[133,4,136,4]]}
[]
[null,"Apéndice 6 guía de llenado del CFDI de nómina"]
[]
[null,"02 Sueldos (Incluye ingresos señalados en la fracción I del artículo 94 de LISR)"]
[null,"c_TipoPercepcion","Descripción","Gravado","Exento","Ingreso exento","¿Se considera para el ajuste anual?","Observación"]
[null,1,"Sueldos, Salarios  Rayas y Jornales","a","r",null,"a","Solo el importe gravado"]
[null,2,"Gratificación Anual (Aguinaldo)","a","a","30 UMAS artículo 93 fracción XIII LISR","a","Solo el importe gravado"]
[null,3,"Participación de los Trabajadores en las Utilidades PTU","a","a","15 UMAS artículo 93 fracción XIII LISR","a","Solo el importe gravado"]
[null,4,"Reembolso de Gastos Médicos Dentales y Hospitalarios","a","a","Al cosiderarse una partida de previsión social ver artículo 93 penúltimo y últim párrafo LISR","a","Solo el importe gravado"]
[null,5,"Fondo de Ahorro","a","a","Al cosiderarse una partida de previsión social ver artículo 93 penúltimo y últim párrafo LISR","a","Solo el importe gravado"]
[null,6,"Caja de ahorro","a","a","Al cosiderarse una partida de previsión social ver artículo 93 penúltimo y últim párrafo LISR","a","Solo el importe gravado"]
[null,9,"Contribuciones a Cargo del Trabajador Pagadas por el Patrón","a","r",null,"a","Solo el importe gravado"]
[null,10,"Premios por puntualidad","a","r",null,"a","Solo el importe gravado"]
[null,11,"Prima de Seguro de vida","a","a","Al cosiderarse una partida de previsión social ver artículo 93 penúltimo y últim párrafo LISR","a","Solo el importe gravado"]
[null,12,"Seguro de Gastos Médicos Mayores","a","a","Al cosiderarse una partida de previsión social ver artículo 93 penúltimo y últim párrafo LISR","a","Solo el importe gravado"]
[null,13,"Cuotas Sindicales Pagadas por el Patrón","a","r",null,"a","Solo el importe gravado"]
[null,14,"Subsidios por incapacidad","a","a","Al cosiderarse una partida de previsión social ver artículo 93 penúltimo y últim párrafo LISR","a","Solo el importe gravado"]
[null,15,"Becas para trabajadores y/o hijos","a","a","Al cosiderarse una partida de previsión social ver artículo 93 penúltimo y últim párrafo LISR","a","Solo el importe gravado"]
[null,19,"Horas extra","a","a","100% trabajadores de salario mínimo el 50% los demás, con un tope de 5 UMAS por cada semana de servicio, artículo 93 fracción I LISR","a","Solo el importe gravado"]
[null,20,"Prima dominical","a","a","1 UMA por cada domingo, artículo 93 facción IX LISR","a","Solo el importe gravado"]
[null,21,"Prima vacacional","a","a","15 UMAS artículo 93 fracción XIII LISR","a","Solo el importe gravado"]
[null,24,"Seguro de retiro","a","a","Al cosiderarse una partida de previsión social ver artículo 93 penúltimo y últim párrafo LISR","a","Solo el importe gravado"]
[null,26,"Reembolso por funeral","a","a","Al cosiderarse una partida de previsión social ver artículo 93 penúltimo y últim párrafo LISR","a","Solo el importe gravado"]
[null,27,"Cuotas de seguridad social pagadas por el patrón","r","a","Artículo 93 fracción XII LISR","a"]
[null,28,"Comisiones","a","r",null,"a","Solo el importe gravado"]
[null,29,"Vales de despensa","a","a","Al cosiderarse una partida de previsión social ver artículo 93 penúltimo y últim párrafo LISR","a","Solo el importe gravado"]
[null,30,"Vales de restaurante","a","a","Al cosiderarse una partida de previsión social ver artículo 93 penúltimo y últim párrafo LISR","a","Solo el importe gravado"]
[null,31,"Vales de gasolina","a","a","Al cosiderarse una partida de previsión social ver artículo 93 penúltimo y últim párrafo LISR","a","Solo el importe gravado"]
[null,32,"Vales de ropa","a","a","Al cosiderarse una partida de previsión social ver artículo 93 penúltimo y últim párrafo LISR","a","Solo el importe gravado"]
[null,33,"Ayuda para renta","a","a","Al cosiderarse una partida de previsión social ver artículo 93 penúltimo y últim párrafo LISR","a","Solo el importe gravado"]
[null,34,"Ayuda para artículos escolares","a","a","Al cosiderarse una partida de previsión social ver artículo 93 penúltimo y últim párrafo LISR","a","Solo el importe gravado"]
[null,35,"Ayuda para anteojos","a","a","Al cosiderarse una partida de previsión social ver artículo 93 penúltimo y últim párrafo LISR","a","Solo el importe gravado"]
[null,36,"Ayuda para transporte","a","a","Al cosiderarse una partida de previsión social ver artículo 93 penúltimo y últim párrafo LISR","a","Solo el importe gravado"]
[null,37,"Ayuda para gastos de funeral","a","a","Al cosiderarse una partida de previsión social ver artículo 93 penúltimo y últim párrafo LISR","a","Solo el importe gravado"]
[null,38,"Otros ingresos por salarios","a","a",null,"a","Solo el importe gravado"]
[null," 047","Alimentación diferentes a los establecidos en el Art 94 último párrafo LISR","a","a","Al cosiderarse una partida de previsión social ver artículo 93 penúltimo y últim párrafo LISR","a","Solo el importe gravado"]
[null,48,"Habitación","a","a","Al cosiderarse una partida de previsión social ver artículo 93 penúltimo y últim párrafo LISR","a","Solo el importe gravado"]
[null,49,"Premios por asistencia","a","r",null,"a","Solo el importe gravado"]
[null,50,"Viáticos","a","a","Artículo 93 fracción XVII LISR","a","Solo el importe gravado"]
[]
[]
[null,"c_TipoDeduccion","Descripción","Disminuye la base gravada","¿Clave de percepciones que disminuye?"]
[null,1,"Seguridad social","r"]
[null,2,"ISR","r"]
[null,3,"Aportaciones a retiro, cesantía en edad avanzada y vejez.","r"]
[null,4,"Otros","r"]
[null,5,"Aportaciones a Fondo de vivienda","r"]
[null,6,"Descuento por incapacidad","r"]
[null,7,"Pensión alimenticia","r"]
[null,8,"Renta","r"]
[null,9,"Préstamos provenientes del Fondo Nacional de la Vivienda para los Trabajadores","r"]
[null,10,"Pago por crédito de vivienda","r"]
[null,11,"Pago de abonos INFONACOT","r"]
[null,12,"Anticipo de salarios","a",1,"Sueldos, Salarios  Rayas y Jornales"]
[null,13,"Pagos hechos con exceso al trabajador","a",1,"Sueldos, Salarios  Rayas y Jornales"]
[null,14,"Errores","r"]
[null,15,"Pérdidas","r"]
[null,16,"Averías","r"]
[null,17,"Adquisición de artículos producidos por la empresa o establecimiento","r"]
[null,18,"Cuotas para la constitución y fomento de sociedades cooperativas y de cajas de ahorro","r"]
[null,19,"Cuotas sindicales","r"]
[null,20,"Ausencia (Ausentismo)","a",1,"Sueldos, Salarios  Rayas y Jornales"]
[null,21,"Cuotas obrero patronales","r"]
[null,22,"Impuestos Locales","r"]
[null,23,"Aportaciones voluntarias","r"]
[null,24,"Ajuste en Gratificación Anual (Aguinaldo) Exento","r"]
[null,25,"Ajuste en Gratificación Anual (Aguinaldo) Gravado","a",2,"Gratificación Anual (Aguinaldo)"]
[null,26,"Ajuste en Participación de los Trabajadores en las Utilidades PTU Exento","r"]
[null,27,"Ajuste en Participación de los Trabajadores en las Utilidades PTU Gravado","a",3,"Participación de los Trabajadores en las Utilidades PTU"]
[null,28,"Ajuste en Reembolso de Gastos Médicos Dentales y Hospitalarios Exento","r"]
[null,29,"Ajuste en Fondo de ahorro Exento","r"]
[null,30,"Ajuste en Caja de ahorro Exento","r"]
[null,31,"Ajuste en Contribuciones a Cargo del Trabajador Pagadas por el Patrón Exento","r"]
[null,32,"Ajuste en Premios por puntualidad Gravado","a",10,"Premios por puntualidad"]
[null,33,"Ajuste en Prima de Seguro de vida Exento","r"]
[null,34,"Ajuste en Seguro de Gastos Médicos Mayores Exento","r"]
[null,35,"Ajuste en Cuotas Sindicales Pagadas por el Patrón Exento","r"]
[null,36,"Ajuste en Subsidios por incapacidad Exento","r"]
[null,37,"Ajuste en Becas para trabajadores y/o hijos Exento","r"]
[null,38,"Ajuste en Horas extra Exento","r"]
[null,39,"Ajuste en Horas extra Gravado","a",19,"Horas extra"]
[null,40,"Ajuste en Prima dominical Exento","r"]
[null,41,"Ajuste en Prima dominical Gravado","a",20,"Prima dominical"]
[null,42,"Ajuste en Prima vacacional Exento","r"]
[null,43,"Ajuste en Prima vacacional Gravado","a",21,"Prima vacacional"]
[null,48,"Ajuste en Seguro de retiro Exento","r"]
[null,51,"Ajuste en Reembolso por funeral Exento","r"]
[null,52,"Ajuste en Cuotas de seguridad social pagadas por el patrón Exento","r"]
[null,53,"Ajuste en Comisiones Gravado","a",28,"Comisiones"]
[null,54,"Ajuste en Vales de despensa Exento","r"]
[null,55,"Ajuste en Vales de restaurante Exento","r"]
[null,56,"Ajuste en Vales de gasolina Exento","r"]
[null,57,"Ajuste en Vales de ropa Exento","r"]
[null,58,"Ajuste en Ayuda para renta Exento","r"]
[null,59,"Ajuste en Ayuda para artículos escolares Exento","r"]
[null,60,"Ajuste en Ayuda para anteojos Exento","r"]
[null,61,"Ajuste en Ayuda para transporte Exento","r"]
[null,62,"Ajuste en Ayuda para gastos de funeral Exento","r"]
[null,63,"Ajuste en Otros ingresos por salarios Exento","r"]
[null,64,"Ajuste en Otros ingresos por salarios Gravado","a",38,"Otros ingresos por salarios"]
[null,71,"Ajuste en Subsidio para el empleo (efectivamente entregado al trabajador)","r"]
[null,72,"Ajuste en Ingresos en acciones o títulos valor que representan bienes Exento","r"]
[null,74,"Ajuste en Alimentación Exento","r"]
[null,75,"Ajuste en Alimentación Gravado","a"," 047","Alimentación diferentes a los establecidos en el Art 94 último párrafo LISR"]
[null,76,"Ajuste en Habitación Exento","r"]
[null,77,"Ajuste en Habitación Gravado","a",48,"Habitación"]
[null,78,"Ajuste en Premios por asistencia","a",49,"Premios por asistencia"]
[null,79,"Ajuste en Pagos distintos a los listados y que no deben considerarse como ingreso por sueldos, salarios o ingresos asimilados.","r"]
[null,80,"Ajuste en Viáticos gravados","a",50,"Viáticos"]
[null,81,"Ajuste en Viáticos (entregados al trabajador)","r"]
[null,"082","Ajuste en Fondo de ahorro Gravado","a",5,"Fondo de Ahorro"]
[null,"083","Ajuste en Caja de ahorro Gravado","a",6,"Caja de ahorro"]
[null,"084","Ajuste en Prima de Seguro de vida Gravado","a",11,"Prima de Seguro de vida"]
[null,"085","Ajuste en Seguro de Gastos Médicos Mayores Gravado","a",12,"Seguro de Gastos Médicos Mayores"]
[null,"086","Ajuste en Subsidios por incapacidad Gravado","a",14,"Subsidios por incapacidad"]
[null,"087","Ajuste en Becas para trabajadores y/o hijos Gravado","a",15,"Becas para trabajadores y/o hijos"]
[null,"088","Ajuste en Seguro de retiro Gravado","a",24,"Seguro de retiro"]
[null,"089","Ajuste en Vales de despensa Gravado","a",29,"Vales de despensa"]
[null,"090","Ajuste en Vales de restaurante Gravado","a",30,"Vales de restaurante"]
[null,"091","Ajuste en Vales de gasolina Gravado","a",31,"Vales de gasolina"]
[null,"092","Ajuste en Vales de ropa Gravado","a",32,"Vales de ropa"]
[null,"093","Ajuste en Ayuda para renta Gravado","a",33,"Ayuda para renta"]
[null,"094","Ajuste en Ayuda para artículos escolares Gravado","a",34,"Ayuda para artículos escolares"]
[null,"095","Ajuste en Ayuda para anteojos Gravado","a",35,"Ayuda para anteojos"]
[null,"096","Ajuste en Ayuda para transporte Gravado","a",36,"Ayuda para transporte"]
[null,"097","Ajuste en Ayuda para gastos de funeral Gravado","a",37,"Ayuda para gastos de funeral"]
[null,"099","Ajuste a ingresos por sueldos y salarios gravados","a",1,"Sueldos, Salarios  Rayas y Jornales"]
[null,100,"Ajuste en Viáticos exentos","r"]
[null,101,"ISR Retenido de ejercicio anterior","r"]
[null,107,"Ajuste al Subsidio Causado ","r"]
[]
[]
[null,"c_TipoPercepcion","Descripción","Gravado","Exento","c_TipoDeduccion","Descripción"]
[null,1,"Sueldos, Salarios  Rayas y Jornales","a","r",12,"Anticipo de salarios"]
[null,null,null,null,null,13,"Pagos hechos con exceso al trabajador"]
[null,null,null,null,null,20,"Ausencia (Ausentismo)"]
[null,null,null,null,null,"099","Ajuste a ingresos por sueldos y salarios gravados"]
[null,2,"Gratificación Anual (Aguinaldo)","a","a",24,"Ajuste en Gratificación Anual (Aguinaldo) Exento"]
[null,null,null,null,null,25,"Ajuste en Gratificación Anual (Aguinaldo) Gravado"]
[null,3,"Participación de los Trabajadores en las Utilidades PTU","a","a",26,"Ajuste en Participación de los Trabajadores en las Utilidades PTU Exento"]
[null,null,null,null,null,27,"Ajuste en Participación de los Trabajadores en las Utilidades PTU Gravado"]
[null,5,"Fondo de Ahorro","a","a",29,"Ajuste en Fondo de ahorro Exento"]
[null,null,null,null,null,"082","Ajuste en Fondo de ahorro Gravado"]
[null,6,"Caja de ahorro","a","a",30,"Ajuste en Caja de ahorro Exento"]
[null,null,null,null,null,"083","Ajuste en Caja de ahorro Gravado"]
[null,4,"Reembolso de Gastos Médicos Dentales y Hospitalarios","a","a",28,"Ajuste en Reembolso de Gastos Médicos Dentales y Hospitalarios Exento"]
[null,11,"Prima de Seguro de vida","a","a",33,"Ajuste en Prima de Seguro de vida Exento"]
[null,null,null,null,null,"084","Ajuste en Prima de Seguro de vida Gravado"]
[null,12,"Seguro de Gastos Médicos Mayores","a","a",34,"Ajuste en Seguro de Gastos Médicos Mayores Exento"]
[null,null,null,null,null,"085","Ajuste en Seguro de Gastos Médicos Mayores Gravado"]
[null,14,"Subsidios por incapacidad","a","a",36,"Ajuste en Subsidios por incapacidad Exento"]
[null,null,null,null,null,"086","Ajuste en Subsidios por incapacidad Gravado"]
[null,15,"Becas para trabajadores y/o hijos","a","a",37,"Ajuste en Becas para trabajadores y/o hijos Exento"]
[null,null,null,null,null,"087","Ajuste en Becas para trabajadores y/o hijos Gravado"]
[null,24,"Seguro de retiro","a","a",48,"Ajuste en Seguro de retiro Exento"]
[null,null,null,null,null,"088","Ajuste en Seguro de retiro Gravado"]
[null,26,"Reembolso por funeral","a","a",51,"Ajuste en Reembolso por funeral Exento"]
[null,29,"Vales de despensa","a","a",54,"Ajuste en Vales de despensa Exento"]
[null,null,null,null,null,"089","Ajuste en Vales de despensa Gravado"]
[null,30,"Vales de restaurante","a","a",55,"Ajuste en Vales de restaurante Exento"]
[null,null,null,null,null,"090","Ajuste en Vales de restaurante Gravado"]
[null,31,"Vales de gasolina","a","a",56,"Ajuste en Vales de gasolina Exento"]
[null,null,null,null,null,"091","Ajuste en Vales de gasolina Gravado"]
[null,32,"Vales de ropa","a","a",57,"Ajuste en Vales de ropa Exento"]
[null,null,null,null,null,"092","Ajuste en Vales de ropa Gravado"]
[null,33,"Ayuda para renta","a","a",58,"Ajuste en Ayuda para renta Exento"]
[null,null,null,null,null,"093","Ajuste en Ayuda para renta Gravado"]
[null,34,"Ayuda para artículos escolares","a","a",59,"Ajuste en Ayuda para artículos escolares Exento"]
[null,null,null,null,null,"094","Ajuste en Ayuda para artículos escolares Gravado"]
[null,35,"Ayuda para anteojos","a","a",60,"Ajuste en Ayuda para anteojos Exento"]
[null,null,null,null,null,"095","Ajuste en Ayuda para anteojos Gravado"]
[null,36,"Ayuda para transporte","a","a",61,"Ajuste en Ayuda para transporte Exento"]
[null,null,null,null,null,"096","Ajuste en Ayuda para transporte Gravado"]
[null,37,"Ayuda para gastos de funeral","a","a",62,"Ajuste en Ayuda para gastos de funeral Exento"]
[null,null,null,null,null,"097","Ajuste en Ayuda para gastos de funeral Gravado"]
[null,48,"Habitación","a","a",76,"Ajuste en Habitación Exento"]
[null,null,null,null,null,77,"Ajuste en Habitación Gravado"]
[null," 047","Alimentación diferentes a los establecidos en el Art 94 último párrafo LISR","a","a",74,"Ajuste en Alimentación Exento"]
[null,null,null,null,null,75,"Ajuste en Alimentación Gravado"]
[null,9,"Contribuciones a Cargo del Trabajador Pagadas por el Patrón","a","r",31,"Ajuste en Contribuciones a Cargo del Trabajador Pagadas por el Patrón Exento"]
[null,10,"Premios por puntualidad","a","r",32,"Ajuste en Premios por puntualidad Gravado"]
[null,13,"Cuotas Sindicales Pagadas por el Patrón","a","a",35,"Ajuste en Cuotas Sindicales Pagadas por el Patrón Exento"]
[null,19,"Horas extra","a","a",38,"Ajuste en Horas extra Exento"]
[null,null,null,null,null,39,"Ajuste en Horas extra Gravado"]
[null,20,"Prima dominical","a","a",40,"Ajuste en Prima dominical Exento"]
[null,null,null,null,null,41,"Ajuste en Prima dominical Gravado"]
[null,21,"Prima vacacional","a","a",42,"Ajuste en Prima vacacional Exento"]
[null,null,null,null,null,43,"Ajuste en Prima vacacional Gravado"]
[null,27,"Cuotas de seguridad social pagadas por el patrón","r","a",52,"Ajuste en Cuotas de seguridad social pagadas por el patrón Exento"]
[null,28,"Comisiones","a","r",53,"Ajuste en Comisiones Gravado"]
[null,38,"Otros ingresos por salarios","a","a",63,"Ajuste en Otros ingresos por salarios Exento"]
[null,null,null,null,null,64,"Ajuste en Otros ingresos por salarios Gravado"]
[null,49,"Premios por asistencia","a","r",78,"Ajuste en Premios por asistencia"]
[null,50,"Viáticos","a","a",80,"Ajuste en Viáticos gravados"]
[null,null,null,null,null,100,"Ajuste en Viáticos exentos"]

{"sheet":"OTROR","index":3,"n_rows":23,"n_cols":8,"rows_kept":23,"cut":false,"hidden":true,"merged":[[6,5,8,5],[6,7,8,7]]}
[]
[]
[null,"c_TipoRegimen","Descripción"]
[null,13,"Indemnización o Separación"]
[]
[null,"c_TipoPercepcion","Descripción","Gravado","Exento","Ingreso exento","¿Se considera para el ajuste anual?","Observación"]
[null,22,"Prima por antigüedad","a","a","90 UMAS por cada año de servicio, si excede de seis meses se considera un año más de exención","a","En caso de que se este obligado a realizar el cálculo, se considera el ingreso acumulable o el último sueldo mensual ordinario."]
[null,23,"Pagos por separación","a","a",null,"a"]
[null,25,"Indemnizaciones","a","a",null,"a"]
[]
[]
[null,"c_TipoRegimen","Descripción"]
[null,5,"Asimilados Miembros Sociedades Cooperativas Produccion"]
[null,6,"Asimilados Integrantes Sociedades Asociaciones Civiles"]
[null,7,"Asimilados Miembros consejos"]
[null,8,"Asimilados comisionistas"]
[null,9,"Asimilados Honorarios"]
[null,10,"Asimilados acciones"]
[null,11,"Asimilados otros"]
[]
[null,"c_TipoPercepcion","Descripción","Gravado","Exento","Ingreso exento","¿Se considera para el ajuste anual?","Observación"]
[null,45,"Ingresos en acciones o títulos valor que representan bienes","a","r",null,"a","Solo el ingreso gravado"]
[null," 046","Ingresos asimilados a salarios","a","r",null,"a","Solo el ingreso gravado"]

{"sheet":"IEXENTO","index":4,"n_rows":26,"n_cols":7,"rows_kept":26,"cut":false,"hidden":true,"merged":[[25,1,25,6],[18,1,18,2],[19,1,19,2],[20,1,20,2],[21,1,21,2],[22,1,22,2],[22,3,22,6],[17,1,17,2],[4,3,4,6],[13,3,13,6],[14,1,14,2],[15,1,15,2],[16,1,16,2]]}
[]
[]
[]
[null,"Ingreso exento de los trabajadores"]
[null,null,null,"Tipo de trabajador"]
[null,null,null,"Salario mínimo","Fundamento","> Salario mínimo","Fundamento"]
[null,"Prestaciones distintas del salario "]
[null,"● Aguinaldo","Artículo 87 LFT.- Los trabajadores tendrán derecho a un aguinaldo anual que deberá pagarse antes del día veinte de diciembre, equivalente a quince días de salario, por lo menos.\n\nLos que no hayan cumplido el año de servicios, independientemente de que se encuentren laborando o no en la fecha de liquidación del aguinaldo, tendrán derecho a que se les pague la parte proporcional del mismo, conforme al tiempo que hubieren trabajado, cualquiera que fuere éste.","100% Exento si se paga de acuerdo a la legislación laboral","Artículo 93 fracción I LISR","30 UMAS","Artículo 93 fracción XIV LISR"]
[null,"● Prima vacacional","Artículo 80 LFT.- Los trabajadores tendrán derecho a una prima no menor de veinticinco por ciento sobre los salarios que les correspondan durante el período de vacaciones.","100% Exento si se paga de acuerdo a la legislación laboral","Artículo 93 fracción I LISR","15 UMAS","Artículo 93 fracción XIV LISR"]
[null,"● Prima dominical","Artículo 71 LFT.- En los reglamentos de esta Ley se procurará que el día de descanso semanal sea el domingo.\n\nLos trabajadores que presten servicio en día domingo tendrán derecho a una prima adicional de un veinticinco por ciento, por lo menos, sobre el salario de los días ordinarios de trabajo","100% Exento si se paga de acuerdo a la legislación laboral","Artículo 93 fracción I LISR","1 UMA por cada domingo sin exceder de 52 al año","Artículo 93 fracción XIV LISR"]
[null,"● Prima de antigüedad ",null,"100% Exento si se paga de acuerdo a la legislación laboral","Artículo 93 fracción I LISR","90 UMAS por cada año de servicio","Artículo 93 fracción XIII LISR"]
[null,"Tiempo extra","Artículo 66 LFT.- Podrá también prolongarse la jornada de trabajo por circunstancias extraordinarias, sin exceder nunca de tres horas diarias ni de tres veces en una semana.","100% Exento si se paga de acuerdo a la legislación laboral","Artículo 93 fracción I LISR","50% del tiempo extra + día de descanso trabajado con un tope de 5 UMAS por cada semana de servicio","Artículo 93 fracción I LISR"]
[null,"Día de descanso trabajado","Artículo 73 LFT.- Los trabajadores no están obligados a prestar servicios en sus días de descanso. Si se quebranta esta disposición, el patrón pagará al trabajador, independientemente del salario que le corresponda por el descanso, un salario doble por el servicio prestado.","100% Exento si se paga de acuerdo a la legislación laboral","Artículo 93 fracción I LISR","50% del tiempo extra + día de descanso trabajado con un tope de 5 UMAS por cada semana de servicio","Artículo 93 fracción I LISR"]
[null,"Las indemnizaciones por riesgos de trabajo o enfermedades, que se concedan de acuerdo con las leyes, por contratos colectivos de trabajo o por contratos Ley.","Artículo 20 segundo párrafo LFT. Contrato individual de trabajo, cualquiera que sea su forma o denominación, es aquel por virtud del cual una persona se obliga a prestar a otra un trabajo personal subordinado, mediante el pago de un salario.\n\nArtículo 386 LFT.- Contrato colectivo de trabajo es el convenio celebrado entre uno o varios sindicatos de trabajadores y uno o varios patrones, o uno o varios sindicatos de patrones, con objeto de establecer las condiciones según las cuales debe prestarse el trabajo en una o más empresas o establecimientos.\n\nArtículo 404 LFT.- Contrato-ley es el convenio celebrado entre uno o varios sindicatos de trabajadores y varios patrones, o uno o varios sindicatos de patrones, con objeto de establecer las condiciones según las cuales debe prestarse el trabajo en un rama determinada de la industria, y declarado obligatorio en una o varias Entidades Federativas, en una o varias zonas económicas que abarquen una o más de dichas Entidades, o en todo el territorio nacional.","Artículo 93 fracción III LISR"]
[null,"Las jubilaciones, pensiones, haberes de retiro, así como las pensiones vitalicias u otras formas de retiro, provenientes de la subcuenta del seguro de retiro o de la subcuenta de retiro, cesantía en edad avanzada y vejez, previstas en la Ley del Seguro Social y las provenientes de la cuenta individual del sistema de ahorro para el retiro prevista en la Ley del Instituto de Seguridad y Servicios Sociales de los Trabajadores del Estado",null,"15 UMAS por día","Artículo 93 fracción IV LISR","15 UMAS por día","Artículo 93 fracción IV LISR"]
[null,"Los percibidos con motivo del reembolso de gastos médicos, dentales, hospitalarios y de funeral, que se concedan de manera general, de acuerdo con las leyes o contratos de trabajo.",null,"100% Exento  ","Artículo 93 fracción VI LISR","100% Exento  ","Artículo 93 fracción VI LISR"]
[null,"Las prestaciones de seguridad social que otorguen las instituciones públicas.",null,"100% Exento  ","Artículo 93 fracción VII LISR","100% Exento  ","Artículo 93 fracción VII LISR"]
[null,"Los percibidos con motivo de subsidios por incapacidad, becas educacionales para los trabajadores o sus hijos, guarderías infantiles, actividades culturales y deportivas, y otras prestaciones de previsión social, de naturaleza análoga, que se concedan de manera general, de acuerdo con las leyes o por contratos de trabajo.",null,"100% Exento  ","Artículo 93 fracción VIII LISR","100% Exento  ","Artículo 93 fracción VIII LISR"]
[null,"La entrega de las aportaciones y sus rendimientos provenientes de la subcuenta de vivienda de la cuenta individual prevista en la Ley del Seguro Social, de la subcuenta del Fondo de la Vivienda de la cuenta individual del sistema de ahorro para el retiro, prevista en la Ley del Instituto de Seguridad y Servicios Sociales de los Trabajadores del Estado o del Fondo de la Vivienda para los miembros del activo del Ejército, Fuerza Aérea y Armada, previsto en la Ley del Instituto de Seguridad Social para las Fuerzas Armadas Mexicanas, así como las casas habitación proporcionadas a los trabajadores, inclusive por las empresas cuando se reúnan los requisitos de deducibilidad del Título II de esta Ley o, en su caso, del presente Título.",null,"100% Exento  ","Artículo 93 fracción X LISR","100% Exento  ","Artículo 93 fracción X LISR"]
[null,"Los provenientes de cajas de ahorro de trabajadores y de fondos de ahorro establecidos por las empresas para sus trabajadores cuando reúnan los requisitos de deducibilidad del Título II de esta Ley o, en su caso, del presente Título.",null,"100% Exento  ","Artículo 93 fracción XI LISR","100% Exento  ","Artículo 93 fracción XI LISR"]
[null,"La cuota de seguridad social de los trabajadores pagada por los patrones",null,"100% Exento  ","Artículo 93 fracción XII LISR","100% Exento  ","Artículo 93 fracción XII LISR"]
[null,"Los que obtengan las personas que han estado sujetas a una relación laboral en el momento de su separación, por concepto de primas de antigüedad, retiro e indemnizaciones u otros pagos, así como los obtenidos con cargo a la subcuenta del seguro de retiro o a la subcuenta de retiro, cesantía en edad avanzada y vejez",null,"Prima de antigüedad 100%, otros pagos por separación 90 UMAS por cada año de servicio","Artículo 93 fracción XIII LISR","90 UMAS por cada año de servicio","Artículo 93 fracción XIII LISR"]
[null,"Los viáticos, cuando sean efectivamente erogados en servicio del patrón y se compruebe esta circunstancia con los comprobantes fiscales correspondientes.",null,"Artículo 93 fracción XVII LISR"]
[]
[null,"Topes en el caso de previsión social"]
[null,"Artículo 93 LISR\n\nSexto párrafo\nLa exención aplicable a los ingresos obtenidos por concepto de prestaciones de previsión social se limitará cuando la suma de los ingresos por la prestación de servicios personales subordinados o aquellos que reciban, por parte de las sociedades cooperativas, los socios o miembros de las mismas y el monto de la exención exceda de una cantidad equivalente a siete veces el salario mínimo general del área geográfica del contribuyente, elevado al año; cuando dicha suma exceda de la cantidad citada, solamente se considerará como ingreso no sujeto al pago del impuesto un monto hasta de un salario mínimo general del área geográfica del contribuyente, elevado al año. Esta limitación en ningún caso deberá dar como resultado que la suma de los ingresos por la prestación de servicios personales subordinados o aquellos que reciban, por parte de las sociedades cooperativas, los socios o miembros de las mismas y el importe de la exención, sea inferior a siete veces el salario mínimo general del área geográfica del contribuyente, elevado al año.\n\nSéptimo párrafo\nLo dispuesto en el párrafo anterior, no será aplicable tratándose de jubilaciones, pensiones, haberes de retiro, pensiones vitalicias, indemnizaciones por riesgos de trabajo o enfermedades, que se concedan de acuerdo con las leyes, contratos colectivos de trabajo o contratos ley, reembolsos de gastos médicos, dentales, hospitalarios y de funeral, concedidos de manera general de acuerdo con las leyes o contratos de trabajo, seguros de gastos médicos, seguros de vida y fondos de ahorro, siempre que se reúnan los requisitos establecidos en las fracciones XI y XXI del artículo 27 de esta Ley, aun cuando quien otorgue dichas prestaciones de previsión social no sea contribuyente del impuesto establecido en esta Ley."]

{"sheet":"PREVISIONS","index":5,"n_rows":86,"n_cols":11,"rows_kept":86,"cut":false,"hidden":true,"merged":[[82,4,82,5],[83,4,83,5]]}
[]
[]
[]
[null,"Para el TipoRegimen “002-Sueldos” partidas de previsión social"]
[null,"c_TipoPercepcion","Descripción","¿Es previsión social?","¿Con posible tope?","Gravado","Exento"]
[null,1,"Sueldos, Salarios  Rayas y Jornales","No"]
[null,2,"Gratificación Anual (Aguinaldo)","No"]
[null,3,"Participación de los Trabajadores en las Utilidades PTU","No"]
[null,4,"Reembolso de Gastos Médicos Dentales y Hospitalarios","Si","No"]
[null,5,"Fondo de Ahorro","Si","No"]
[null,6,"Caja de ahorro","Si","No"]
[null,9,"Contribuciones a Cargo del Trabajador Pagadas por el Patrón","No"]
[null,10,"Premios por puntualidad","No"]
[null,11,"Prima de Seguro de vida","Si","No"]
[null,12,"Seguro de Gastos Médicos Mayores","Si","No"]
[null,13,"Cuotas Sindicales Pagadas por el Patrón","No"]
[null,14,"Subsidios por incapacidad","Si","Si"]
[null,15,"Becas para trabajadores y/o hijos","Si","Si"]
[null,19,"Horas extra","No"]
[null,20,"Prima dominical","No"]
[null,21,"Prima vacacional","No"]
[null,24,"Seguro de retiro","Si","Si"]
[null,26,"Reembolso por funeral","Si","No"]
[null,27,"Cuotas de seguridad social pagadas por el patrón","No"]
[null,28,"Comisiones","No"]
[null,29,"Vales de despensa","Si","Si"]
[null,30,"Vales de restaurante","Si","Si"]
[null,31,"Vales de gasolina","Si","Si"]
[null,32,"Vales de ropa","Si","Si"]
[null,33,"Ayuda para renta","Si","Si"]
[null,34,"Ayuda para artículos escolares","Si","Si"]
[null,35,"Ayuda para anteojos","Si","Si"]
[null,36,"Ayuda para transporte","Si","Si"]
[null,37,"Ayuda para gastos de funeral","Si","Si"]
[null,38,"Otros ingresos por salarios","No"]
[null," 047","Alimentación diferentes a los establecidos en el Art 94 último párrafo LISR","Si","Si"]
[null,48,"Habitación","Si","Si"]
[null,49,"Premios por asistencia","No"]
[null,null,"Total",null,null,{"$f":"SUM(F6:F38)","v":0},{"$f":"SUM(G6:G38)","v":0}]
[]
[null,null,"Valor de la UMA"]
[]
[]
[null,null,"Una UMA elevada al año",{"$f":"IFERROR(ROUND(D41*365,2),\"\")","v":0},"①"]
[null,null,"Siete UMAS elevadas al año",{"$f":"IFERROR(ROUND(7*D41*365,2),\"\")","v":0},"②"]
[]
[null,null,"Total previsión social sin tope exenta",{"$f":"IFERROR(SUMIFS($G$6:$G$38,$D$6:$D$38,\"Si\",$E$6:$E$38,\"No\"),0)","v":0},"③"]
[null,null,"Total previsión social con tope",{"$f":"IFERROR(SUMIFS($F$6:$F$38,$D$6:$D$38,\"Si\",$E$6:$E$38,\"Si\"),0)+IFERROR(SUMIFS($G$6:$G$38,$D$6:$D$38,\"Si\",$E$6:$E$38,\"Si\"),0)","v":0},"④"]
[null,null,"Total de sueldos gravados sin previsión social",{"$f":"IFERROR(SUMIFS($F$6:$F$38,$D$6:$D$38,\"No\"),0)","v":0},"⑤"]
[]
[null,null,"Primer comparativo"]
[]
[null,null,"Total de sueldos gravados sin previsión social",{"$f":"D49","v":0},{"$f":"E49","v":"⑤"}]
[null,null,"(+) Total de previsión social con tope",{"$f":"D48","v":0},{"$f":"E48","v":"④"}]
[null,null,"(=) Resultado I",{"$f":"SUM(D53:D54)","v":0},"⑥"]
[]
[null,null,"Si ⑥ >② entonces el límite máximo de la previsión social es:",{"$f":"D44","v":0},{"$f":"E44","v":"①"}]
[]
[]
[null,null,"Segundo comparativo"]
[null,null,"Total de sueldos gravados sin previsión social",{"$f":"D53","v":0},{"$f":"E53","v":"⑤"}]
[null,null,"(+) Límite máximo de previsión social siempre que ④>①",{"$f":"IFERROR(IF(D54>=D44,D44,D54),0)","v":0},{"$f":"E44","v":"①"}]
[null,null,"(=) Resultado II",{"$f":"SUM(D61:D62)","v":0},"⑦"]
[]
[null,null,"En ningun caso ⑦ puede ser menor que ②"]
[]
[null,null,"Previsión social exenta sin tope",{"$f":"D47","v":0},{"$f":"E47","v":"③"}]
[null,null,"(+)  Previsión social exenta con tope",{"$f":"IFERROR(IF(D63>=D45,D62,IF(D63<D45,D45-D61,D54)),0)","v":0}]
[null,null,"(+) Previsión social gravada",{"$f":"IFERROR(IF(D54>=D68,D54-D68,0),0)","v":0}]
[null,null,"(=) Total previsión social",{"$f":"SUM(D67:D69)","v":0}]
[]
[]
[]
[null,null,null,"Corrección de la previsión social exenta"]
[]
[null,null,null,"Tipo de nómina","E"]
[]
[null,null,null,"Clave","Percepción","Gravado","Exento",null,"Clave","Deducción","Importe"]
[null,null,null,29,"Vales de despensa",{"$f":"D69","v":0},null,null,54,"Ajuste en Vales de despensa Exento",{"$f":"F79","v":0}]
[]
[null,null,null,"Nodo de otros pagos"]
[]
[null,null,null,"Clave","Otros pagos",null,"Importe"]
[null,null,null,2,"Subsidio para el empleo (efectivamente entregado al trabajador).",null,0]
[]
[null,null,null,null,"Subsidio al empleo causado",null,0]

{"sheet":"GENERALES (2)","index":6,"n_rows":23,"n_cols":7,"rows_kept":23,"cut":false,"hidden":true,"merged":[[3,1,3,3]]}
[]
[]
[]
[null,"Tabla de vacaciones"]
[null,"Mímino","Máximo","Días",null,"Área geográfica","Salario mímino"]
[null,0,1,12,null,"Zona Libre de la Frontera Norte",374.89]
[null,{"$f":"C6+0.01","v":1.01},{"$f":"C6+1","v":2},{"$f":"D6+2","v":14},null,"Resto del país",248.93]
[null,{"$f":"C7+0.01","v":2.0099999999999998},{"$f":"C7+1","v":3},{"$f":"D7+2","v":16}]
[null,3.01,4,18]
[null,4.01,5,20,null,"Valor de la UMA","Importe"]
[null,5.01,{"$f":"C10+5","v":10},22,null,"Enero",103.74]
[null,10.01,{"$f":"C11+5","v":15},24,null,"Febrero a diciembre",108.57]
[null,15.01,20,26]
[null,20.010000000000002,25,28]
[null,25.01,30,30]
[null,30.01,35,32]
[null,35.01,40,34]
[null,40.01,45,36]
[null,45.01,50,38]
[null,50.01,55,40]
[null,55.01,60,42]
[null,60.01,65,44]
[null,65.010000000000005,70,46]

{"sheet":"NOMINA","index":7,"n_rows":5,"n_cols":72,"rows_kept":5,"cut":false,"hidden":true,"merged":[[3,51,3,52],[3,53,3,56],[3,57,3,61],[3,62,3,66],[3,67,3,69]]}
[null,null,null,null,null,null,null,null,null,null,null,null,null,null,null,null,null,null,null,null,null,null,null,null,null,null,null,null,null,{"$f":"IF(AND(AA6>=2,AA6<=4,AE6>=1,AE6<=8),0,1)","v":1}]
[]
[]
[null,null,null,null,null,null,null,null,null,null,null,null,null,null,null,null,null,null,null,null,null,null,null,null,null,null,null,null,null,null,null,null,null,null,null,null,null,null,null,null,null,null,null,null,null,null,null,null,null,null,null,"Vanta acciones",null,"Tiempo extra",null,null,null,"Jubilaciones, pensiones, retiro",null,null,null,null,"Pagos por separación",null,null,null,null,"Incapacidades"]
[null,"Fecha de emisión","Fecha de timbrado","UUID","Concepto","Serie","Folio","Forma de pago","Metodo de pago","Moneda","Registro patronal","Nombre del patron","Riesgo de puesto","Concepto riesgo de puesto (este dato no pertenece al XML)","No. De empleado","Nombre del empleado","Departamento","Puesto","Clave de la entidad federrativa","Estado (este dato no pertenece al XML)","CURP","RFC","No. SS","Fecha inicio relación laboral","Salario diario integrado","Salario base de cotización","Tipo de regimen","Tipo de régimen (este dato no pertenece al XML)","Tipo de jornada","Tipo de jornada (este dato no pertenece al XML)","Tipo de contrato","Tipo de contrato (este dato no pertenece al XML)","Antigüedad","Fecha inicial pago","Fecha final pago","Fecha de pago","Periodicidad de pago","Periodicidad de pago  (este dato no pertenece al XML)","Clave de percepción","Percepción","Percepción de acuerdo al catálogo del SAT  (este dato no pertenece al XML)","Percepción exenta","Percepción gravado","Clave de deducción","Deducción","Deducción de acuerdo al catálogo del SAT  (este dato no pertenece al XML)","Importe deducción","Total del comprobante","Tipo de relación","UUID tipo de relación","Subsidio al empleo causado","Valor de mercado","Precio al otorgarse","Días","Tipo de horas","Horas extras","Importe pagado","Total en una sola exhibición","Total parcialidad","Monto diario","Ingreso acumulable","Ingreso no acumulable","Total pagado","No. de años de servicio","Último sueldo mensual ordinario","Ingreso acumulable","Ingreso no acumulable","Días de incapacidad","Tipo de incapacidad","Importe monetario","Dìas pagados","Ruta"]

{"sheet":"CONCENTRADO","index":8,"n_rows":178,"n_cols":11,"rows_kept":178,"cut":false,"hidden":true,"merged":[[6,3,6,4],[6,5,6,6],[6,7,6,8],[6,9,6,10]]}
[]
[]
[]
[null,null,"Fecha inicial de pago "]
[null,null,"Fecha final de pago "]
[]
[null,"Catálogo de percepciones",null,"Régimen 02",null,"Régimen 03, 04 y 12",null,"Régimen 13",null,"Régimen 05, 06, 07, 08, 09, 10, 11"]
[null,"c_TipoPercepcion","Descripción","Gravado","Exento","Gravado","Exento","Gravado","Exento","Gravado","Exento"]
[null,1,"Sueldos, Salarios  Rayas y Jornales"]
[null,2,"Gratificación Anual (Aguinaldo)"]
[null,3,"Participación de los Trabajadores en las Utilidades PTU"]
[null,4,"Reembolso de Gastos Médicos Dentales y Hospitalarios"]
[null,5,"Fondo de Ahorro"]
[null,6,"Caja de ahorro"]
[null,9,"Contribuciones a Cargo del Trabajador Pagadas por el Patrón"]
[null,10,"Premios por puntualidad"]
[null,11,"Prima de Seguro de vida"]
[null,12,"Seguro de Gastos Médicos Mayores"]
[null,13,"Cuotas Sindicales Pagadas por el Patrón"]
[null,14,"Subsidios por incapacidad"]
[null,15,"Becas para trabajadores y/o hijos"]
[null,19,"Horas extra"]
[null,20,"Prima dominical"]
[null,21,"Prima vacacional"]
[null,22,"Prima por antigüedad"]
[null,23,"Pagos por separación"]
[null,24,"Seguro de retiro"]
[null,25,"Indemnizaciones"]
[null,26,"Reembolso por funeral"]
[null,27,"Cuotas de seguridad social pagadas por el patrón"]
[null,28,"Comisiones"]
[null,29,"Vales de despensa"]
[null,30,"Vales de restaurante"]
[null,31,"Vales de gasolina"]
[null,32,"Vales de ropa"]
[null,33,"Ayuda para renta"]
[null,34,"Ayuda para artículos escolares"]
[null,35,"Ayuda para anteojos"]
[null,36,"Ayuda para transporte"]
[null,37,"Ayuda para gastos de funeral"]
[null,38,"Otros ingresos por salarios"]
[null,39,"Jubilaciones, pensiones o haberes de retiro"]
[null,44,"Jubilaciones, pensiones o haberes de retiro en parcialidades"]
[null,45,"Ingresos en acciones o títulos valor que representan bienes"]
[null," 046","Ingresos asimilados a salarios"]
[null," 047","Alimentación diferentes a los establecidos en el Art 94 último párrafo LISR"]
[null,48,"Habitación"]
[null,49,"Premios por asistencia"]
[null,50,"Viáticos"]
[null,51,"Pagos por gratificaciones, primas, compensaciones, recompensas u otros a extrabajadores derivados de jubilación en parcialidades"]
[null,52,"Pagos que se realicen a extrabajadores que obtengan una jubilación en parcialidades derivados de la ejecución de resoluciones judicial o de un laudo"]
[null,53,"Pagos que se realicen a extrabajadores que obtengan una jubilación en una sola exhibición derivados de la ejecución de resoluciones judicial o de un laudo"]
[null,null,"Totales"]
[]
[null,"Catálogo de deducciones"]
[null,"c_TipoDeduccion","Descripción","Régimen 02","Régimen 03, 04 y 12","Régimen 13","Régimen 05, 06, 07, 08, 09, 10, 11"]
[null,1,"Seguridad social"]
[null,2,"ISR"]
[null,3,"Aportaciones a retiro, cesantía en edad avanzada y vejez."]
[null,4,"Otros"]
[null,5,"Aportaciones a Fondo de vivienda"]
[null,6,"Descuento por incapacidad"]
[null,7,"Pensión alimenticia"]
[null,8,"Renta"]
[null,9,"Préstamos provenientes del Fondo Nacional de la Vivienda para los Trabajadores"]
[null,10,"Pago por crédito de vivienda"]
[null,11,"Pago de abonos INFONACOT"]
[null,12,"Anticipo de salarios"]
[null,13,"Pagos hechos con exceso al trabajador"]
[null,14,"Errores"]
[null,15,"Pérdidas"]
[null,16,"Averías"]
[null,17,"Adquisición de artículos producidos por la empresa o establecimiento"]
[null,18,"Cuotas para la constitución y fomento de sociedades cooperativas y de cajas de ahorro"]
[null,19,"Cuotas sindicales"]
[null,20,"Ausencia (Ausentismo)"]
[null,21,"Cuotas obrero patronales"]
[null,22,"Impuestos Locales"]
[null,23,"Aportaciones voluntarias"]
[null,24,"Ajuste en Gratificación Anual (Aguinaldo) Exento"]
[null,25,"Ajuste en Gratificación Anual (Aguinaldo) Gravado"]
[null,26,"Ajuste en Participación de los Trabajadores en las Utilidades PTU Exento"]
[null,27,"Ajuste en Participación de los Trabajadores en las Utilidades PTU Gravado"]
[null,28,"Ajuste en Reembolso de Gastos Médicos Dentales y Hospitalarios Exento"]
[null,29,"Ajuste en Fondo de ahorro Exento"]
[null,30,"Ajuste en Caja de ahorro Exento"]
[null,31,"Ajuste en Contribuciones a Cargo del Trabajador Pagadas por el Patrón Exento"]
[null,32,"Ajuste en Premios por puntualidad Gravado"]
[null,33,"Ajuste en Prima de Seguro de vida Exento"]
[null,34,"Ajuste en Seguro de Gastos Médicos Mayores Exento"]
[null,35,"Ajuste en Cuotas Sindicales Pagadas por el Patrón Exento"]
[null,36,"Ajuste en Subsidios por incapacidad Exento"]
[null,37,"Ajuste en Becas para trabajadores y/o hijos Exento"]
[null,38,"Ajuste en Horas extra Exento"]
[null,39,"Ajuste en Horas extra Gravado"]
[null,40,"Ajuste en Prima dominical Exento"]
[null,41,"Ajuste en Prima dominical Gravado"]
[null,42,"Ajuste en Prima vacacional Exento"]
[null,43,"Ajuste en Prima vacacional Gravado"]
[null,44,"Ajuste en Prima por antigüedad Exento"]
[null,45,"Ajuste en Prima por antigüedad Gravado"]
[null,46,"Ajuste en Pagos por separación Exento"]
[null,47,"Ajuste en Pagos por separación Gravado"]
[null,48,"Ajuste en Seguro de retiro Exento"]
[null,49,"Ajuste en Indemnizaciones Exento"]
[null,50,"Ajuste en Indemnizaciones Gravado"]
[null,51,"Ajuste en Reembolso por funeral Exento"]
[null,52,"Ajuste en Cuotas de seguridad social pagadas por el patrón Exento"]
[null,53,"Ajuste en Comisiones Gravado"]
[null,54,"Ajuste en Vales de despensa Exento"]
[null,55,"Ajuste en Vales de restaurante Exento"]
[null,56,"Ajuste en Vales de gasolina Exento"]
[null,57,"Ajuste en Vales de ropa Exento"]
[null,58,"Ajuste en Ayuda para renta Exento"]
[null,59,"Ajuste en Ayuda para artículos escolares Exento"]
[null,60,"Ajuste en Ayuda para anteojos Exento"]
[null,61,"Ajuste en Ayuda para transporte Exento"]
[null,62,"Ajuste en Ayuda para gastos de funeral Exento"]
[null,63,"Ajuste en Otros ingresos por salarios Exento"]
[null,64,"Ajuste en Otros ingresos por salarios Gravado"]
[null,65,"Ajuste en Jubilaciones, pensiones o haberes de retiro en una sola exhibición Exento "]
[null,66,"Ajuste en Jubilaciones, pensiones o haberes de retiro en una sola exhibición Gravado"]
[null,67,"Ajuste en Pagos por separación Acumulable"]
[null,68,"Ajuste en Pagos por separación No acumulable"]
[null,69,"Ajuste en Jubilaciones, pensiones o haberes de retiro en parcialidades Exento"]
[null,70,"Ajuste en Jubilaciones, pensiones o haberes de retiro en parcialidades Gravado"]
[null,71,"Ajuste en Subsidio para el empleo (efectivamente entregado al trabajador)"]
[null,72,"Ajuste en Ingresos en acciones o títulos valor que representan bienes Exento"]
[null,73,"Ajuste en Ingresos en acciones o títulos valor que representan bienes Gravado"]
[null,74,"Ajuste en Alimentación Exento"]
[null,75,"Ajuste en Alimentación Gravado"]
[null,76,"Ajuste en Habitación Exento"]
[null,77,"Ajuste en Habitación Gravado"]
[null,78,"Ajuste en Premios por asistencia"]
[null,79,"Ajuste en Pagos distintos a los listados y que no deben considerarse como ingreso por sueldos, salarios o ingresos asimilados."]
[null,80,"Ajuste en Viáticos gravados"]
[null,81,"Ajuste en Viáticos (entregados al trabajador)"]
[null,"082","Ajuste en Fondo de ahorro Gravado"]
[null,"083","Ajuste en Caja de ahorro Gravado"]
[null,"084","Ajuste en Prima de Seguro de vida Gravado"]
[null,"085","Ajuste en Seguro de Gastos Médicos Mayores Gravado"]
[null,"086","Ajuste en Subsidios por incapacidad Gravado"]
[null,"087","Ajuste en Becas para trabajadores y/o hijos Gravado"]
[null,"088","Ajuste en Seguro de retiro Gravado"]
[null,"089","Ajuste en Vales de despensa Gravado"]
[null,"090","Ajuste en Vales de restaurante Gravado"]
[null,"091","Ajuste en Vales de gasolina Gravado"]
[null,"092","Ajuste en Vales de ropa Gravado"]
[null,"093","Ajuste en Ayuda para renta Gravado"]
[null,"094","Ajuste en Ayuda para artículos escolares Gravado"]
[null,"095","Ajuste en Ayuda para anteojos Gravado"]
[null,"096","Ajuste en Ayuda para transporte Gravado"]
[null,"097","Ajuste en Ayuda para gastos de funeral Gravado"]
[null,"098","Ajuste a ingresos asimilados a salarios gravados"]
[null,"099","Ajuste a ingresos por sueldos y salarios gravados"]
[null,100,"Ajuste en Viáticos exentos"]
[null,101,"ISR Retenido de ejercicio anterior"]
[null,102,"Ajuste a pagos por gratificaciones, primas, compensaciones, recompensas u otros a extrabajadores derivados de jubilación en parcialidades, gravados"]
[null,103,"Ajuste a pagos que se realicen a extrabajadores que obtengan una jubilación en parcialidades derivados de la ejecución de una resolución judicial o de un laudo gravados"]
[null,104,"Ajuste a pagos que se realicen a extrabajadores que obtengan una jubilación en parcialidades derivados de la ejecución de una resolución judicial o de un laudo exentos"]
[null,105,"Ajuste a pagos que se realicen a extrabajadores que obtengan una jubilación en una sola exhibición derivados de la ejecución de una resolución judicial o de un laudo gravados"]
[null,106,"Ajuste a pagos que se realicen a extrabajadores que obtengan una jubilación en una sola exhibición derivados de la ejecución de una resolución judicial o de un laudo exentos"]
[null,107,"Ajuste al Subsidio Causado "]
[null,null,"Totales"]
[]
[null,"Catálogo de otros pagos"]
[null," c_TipoOtroPago","Descripción","Régimen 02","Régimen 03, 04 y 12","Régimen 13","Régimen 05, 06, 07, 08, 09, 10, 11"]
[null,"O001","Reintegro de ISR pagado en exceso (siempre que no haya sido enterado al SAT)."]
[null,"O002","Subsidio para el empleo (efectivamente entregado al trabajador)."]
[null,"O003","Viáticos (entregados al trabajador)."]
[null,"O004","Aplicación de saldo a favor por compensación anual."]
[null,"O005","Reintegro de ISR retenido en exceso de ejercicio anterior (siempre que no haya sido enterado al SAT)."]
[null,"O006","Alimentos en bienes (Servicios de comedor y comida) Art 94 último párrafo LISR."]
[null,"O007","ISR ajustado por subsidio."]
[null,"O008","Subsidio efectivamente entregado que no correspondía (Aplica sólo cuando haya ajuste al cierre de mes en relación con el Apéndice 7 de la guía de llenado de nómina)."]
[null,"O009","Reembolso de descuentos efectuados para el crédito de vivienda."]
[null,999,"Pagos distintos a los listados y que no deben considerarse como ingreso por sueldos, salarios o ingresos asimilados."]
[null,null,"Totales"]

{"sheet":"AJUSTE SUELDOS","index":9,"n_rows":10,"n_cols":28,"rows_kept":10,"cut":false,"hidden":true,"merged":[[6,26,6,27],[5,7,5,11],[6,5,6,6],[6,13,6,18],[6,19,6,21],[6,23,6,25]]}
[]
[null,"Determinación del ajuste de sueldos y salarios 2024"]
[]
[]
[null,null,"Fecha inicial del ajuste"]
[null,null,"Fecha final del ajuste",null,null,null,null,"(-) Deducciones"]
[null,null,null,null,null,"Percepciones régimen sueldos y asimilados",null,6,12,13,20,null,null,"Aplicación de la tarifa del artículo 152 LISR (actualizada anexo 8 RMF 2022)",null,null,null,null,null,"(-) Subsidio al empleo causado",null,null,"(=)","(-) Retenciones de ISR",null,null,"(=) Diferencia"]
[null,"No. empleado","Empleado","RFC","¿Se relaliza el cálculo anual?","Gravado","Exento","Descuento por incapacidad","Anticipo de salarios","Pagos hechos con exceso al trabajador.","Ausencia (Ausentismo)","Ajustes a percepciones gravadas","Base de ISR","(-) Límite inferior","(=) Excedente del límite inferior","(x) % del excedente del límite inferior","(=) Impuesto marginal","(+) Cuota fija","(=) ISR causado","Subsidio al empleo causado","(-) Ajuste al subsidio al empleo causado (clave 107 deducciones)","(=) Subsidio al empleo cauaso a aplicar","ISR a cargo","∑ de la clave 002 (ISR) de deducciones","(-) ∑ de la clave 01 (reintegro de ISR) del nodo de otros pagos","(=) ISR retenido del ejercicio","A cargo","A favor"]
[]
[{"$f":"IFERROR(IF(#REF!<>\"\",#REF!-#REF!,\"\"),\"\")","v":""}]

{"sheet":"ERRORESPDSAT","index":10,"n_rows":0,"n_cols":0,"rows_kept":0,"cut":false,"hidden":true,"merged":[]}

{"sheet":"ERRORESSE","index":11,"n_rows":0,"n_cols":0,"rows_kept":0,"cut":false,"hidden":true,"merged":[]}

{"sheet":"DATOS","index":12,"n_rows":50,"n_cols":10,"rows_kept":50,"cut":false,"hidden":true,"merged":[]}
[]
[]
[]
[null,"LICENCIA"]
[null,"NOMBRE"]
[null,"RFC"]
[]
[null,"No. para solicitar contraseña",null,{"$f":"IFERROR(MID(C4,2,1)&MID(C5,3,2)&MID(C6,5,3),\"\")","v":""}]
[]
[null,"Contraseña para ingresar",null,{"$f":"C12&C13&C14&C15&C16&C17","v":""},null,null,null,null,"A",5]
[null,null,null,null,null,null,null,null,"B",9]
[null,{"$f":"IFERROR(MID($D$8,1,1),X)","v":""},{"$f":"IFERROR(VLOOKUP(B12,$I$10:$J$51,2,FALSE),\"\")","v":""},null,null,null,null,null,"C",2]
[null,{"$f":"IFERROR(MID($D$8,2,1),X)","v":""},{"$f":"IFERROR(VLOOKUP(B13,$I$10:$J$51,2,FALSE),\"\")","v":""},null,null,null,null,null,"D",4]
[null,{"$f":"IFERROR(MID($D$8,3,1),X)","v":""},"",null,null,null,null,null,"E",8]
[null,{"$f":"IFERROR(MID($D$8,4,1),X)","v":""},{"$f":"IFERROR(VLOOKUP(B15,$I$10:$J$51,2,FALSE),\"\")","v":""},null,null,null,null,null,"F",3]
[null,{"$f":"IFERROR(MID($D$8,5,1),X)","v":""},"",null,null,null,null,null,"G",7]
[null,{"$f":"IFERROR(MID($D$8,6,1),X)","v":""},"",null,null,null,null,null,"H",2]
[null,null,null,null,null,null,null,null,"I",9]
[null,null,null,null,null,null,null,null,"J",6]
[null,null,null,null,null,null,null,null,"K",1]
[null,null,null,null,null,null,null,null,"L",8]
[null,null,null,null,null,null,null,null,"M",2]
[null,null,null,null,null,null,null,null,"N",0]
[null,null,null,null,null,null,null,null,"Ñ",4]
[null,null,null,null,null,null,null,null,"O",7]
[null,null,null,null,null,null,null,null,"P",3]
[null,null,null,null,null,null,null,null,"Q",9]
[null,null,null,null,null,null,null,null,"R",5]
[null,null,null,null,null,null,null,null,"S",2]
[null,null,null,null,null,null,null,null,"T",4]
[null,null,null,null,null,null,null,null,"U",7]
[null,null,null,null,null,null,null,null,"V",6]
[null,null,null,null,null,null,null,null,"W",5]
[null,null,null,null,null,null,null,null,"X",9]
[null,null,null,null,null,null,null,null,"Y",3]
[null,null,null,null,null,null,null,null,"Z",8]
[null,null,null,null,null,null,null,null,"&",4]
[null,null,null,null,null,null,null,null,"0","A"]
[null,null,null,null,null,null,null,null,"1","D"]
[null,null,null,null,null,null,null,null,"2","G"]
[null,null,null,null,null,null,null,null,"3","T"]
[null,null,null,null,null,null,null,null,"4","R"]
[null,null,null,null,null,null,null,null,"5","H"]
[null,null,null,null,null,null,null,null,"6","C"]
[null,null,null,null,null,null,null,null,"7","K"]
[null,null,null,null,null,null,null,null,"8","O"]
[null,null,null,null,null,null,null,null,"9","P"]
[null,null,null,null,null,null,null,null,".","&"]
[null,null,null,null,null,null,null,null,",","Y"]
[null,null,null,null,null,null,null,null," ","K"]

{"sheet":"CORRECCIONE","index":13,"n_rows":35,"n_cols":2,"rows_kept":35,"cut":false,"hidden":true,"merged":[]}
[]
[]
[]
[]
[]
[]
[]
[]
[]
[]
[]
[]
[]
[]
[]
[]
[]
[]
[]
[]
[]
[]
[]
[]
[]
[]
[]
[]
[]
[]
[]
[]
[]
[]
[null,"Página 2"]

{"sheet":"TARIFA","index":14,"n_rows":86,"n_cols":9,"rows_kept":86,"cut":false,"hidden":true,"merged":[[71,1,71,4],[55,6,55,8],[2,1,2,4],[2,6,2,8],[3,6,3,8],[20,1,20,4],[20,6,20,8],[21,6,21,8],[37,1,37,4],[37,6,37,8],[38,6,38,8],[54,1,54,4],[54,6,54,8]]}
[null,"Tarifas de retencionde 2023 anexo 8 RMF2023"]
[]
[null,"2. Tarifa aplicable cuando hagan pagos que correspondan a un periodo de 7 días, correspondiente a 2023.",null,null,null,null,"Tabla del subsidio para el empleo aplicable a la tarifa del numeral 2 del rubro B."]
[null,"Límite inferior","Límite superior","Cuota fija","Por ciento para aplicarse sobre",null,"Monto de ingresos que sirven de base para calcular el impuesto"]
[null,null,null,null,"el excedente del límite inferior",null,"Para Ingresos de","Hasta Ingresos de","Cantidad de subsidio para el empleo semanal"]
[null,"$","$","$","%",null,"$","$","$"]
[null,0.01,171.78,0,1.92,null,0.01,407.33,93.73]
[null,171.79,1458.03,3.29,6.4,null,407.34,610.96,93.66]
[null,1458.04,2562.35,85.61,10.88,null,610.97,799.68,93.66]
[null,2562.36,2978.64,205.8,16,null,799.69,814.66,90.44]
[null,2978.65,3566.22,272.37,17.920000000000002,null,814.67,1023.75,88.06]
[null,3566.23,7192.64,377.65,21.36,null,1023.76,1086.19,81.55]
[null,7192.65,11336.57,1152.27,23.52,null,1086.2,1228.57,74.83]
[null,11336.58,21643.3,2126.9499999999998,30,null,1228.58,1433.32,67.83]
[null,21643.31,28857.78,5218.92,32,null,1433.33,1638.07,58.38]
[null,28857.79,86573.34,7527.59,34,null,1638.08,1699.88,50.12]
[null,86573.35,"En adelante",27150.83,35,null,1699.89,"En adelante",0]
[]
[]
[]
[null,"3. Tarifa aplicable cuando hagan pagos que correspondan a un periodo de 10 días, correspondiente a 2023.",null,null,null,null,"Tabla del subsidio para el empleo aplicable a la tarifa del numeral 3 del rubro B."]
[null,"Límite inferior","Límite superior","Cuota fija","Por ciento para aplicarse sobre",null,"Monto de ingresos que sirven de base para"]
[null,null,null,null,"el excedente del límite inferior",null,"Para Ingresos de","Hasta Ingresos de","Cantidad de subsidio para el empleo decenal"]
[null,"$","$","$","%",null,"$","$","$"]
[null,0.01,245.4,0,1.92,null,0.01,581.9,133.9]
[null,245.41,2082.9,4.7,6.4,null,581.91,872.8,133.80000000000001]
[null,2082.91,3660.5,122.3,10.88,null,872.81,1142.4000000000001,133.80000000000001]
[null,3660.51,4255.2,294,16,null,1142.4100000000001,1163.8,129.19999999999999]
[null,4255.21,5094.6000000000004,389.1,17.920000000000002,null,1163.81,1462.5,125.8]
[null,5094.6099999999997,10275.200000000001,539.5,21.36,null,1462.51,1551.7,116.5]
[null,10275.209999999999,16195.1,1646.1,23.52,null,1551.71,1755.1,106.9]
[null,16195.11,30919,3038.5,30,null,1755.11,2047.6,96.9]
[null,30919.01,41225.4,7455.6,32,null,2047.61,2340.1,83.4]
[null,41225.410000000003,123676.2,10753.7,34,null,2340.11,2428.4,71.599999999999994]
[null,123676.21,"En adelante",38786.9,35,null,2428.41,"En adelante",0]
[]
[]
[null,"4. Tarifa aplicable cuando hagan pagos que correspondan a un periodo de 15 días, correspondiente a 2023.",null,null,null,null,"Tabla del subsidio para el empleo aplicable a la tarifa del numeral 4 del rubro B"]
[null,"Límite inferior","Límite superior","Cuota fija","Por ciento para aplicarse sobre",null,"Monto de ingresos que sirven de base para calcular el impuesto"]
[null,null,null,null,"el excedente del límite inferior",null,"Para Ingresos de","Hasta Ingresos de","Cantidad de subsidio para el empleo quincenal"]
[null,"$","$","$","%",null,"$","$","$"]
[null,0.01,368.1,0,1.92,null,0.01,872.85,200.85]
[null,368.11,3124.35,7.05,6.4,null,872.86,1309.2,200.7]
[null,3124.36,5490.75,183.45,10.88,null,1309.21,1713.6,200.7]
[null,5490.76,6382.8,441,16,null,1713.61,1745.7,193.8]
[null,6382.81,7641.9,583.65,17.920000000000002,null,1745.71,2193.75,188.7]
[null,7641.91,15412.8,809.25,21.36,null,2193.7600000000002,2327.5500000000002,174.75]
[null,15412.81,24292.65,2469.15,23.52,null,2327.56,2632.65,160.35]
[null,24292.66,46378.5,4557.75,30,null,2632.66,3071.4,145.35]
[null,46378.51,61838.1,11183.4,32,null,3071.41,3510.15,125.1]
[null,61838.11,185514.3,16130.55,34,null,3510.16,3642.6,107.4]
[null,185514.31,"En adelante",58180.35,35,null,3642.61,"En adelante",0]
[]
[]
[null,"5. Tarifa aplicable durante 2023 para el cálculo de los pagos provisionales mensuales.",null,null,null,null,"Tabla del subsidio para el empleo aplicable a la tarifa del numeral 5 del rubro B."]
[null,"Límite inferior","Límite superior","Cuota fija","Por ciento para aplicarse sobre",null,"Monto de ingresos que sirven de base para calcular el impuesto"]
[null,null,null,null,"el excedente del límite inferior",null,"Para Ingresos de","Hasta Ingresos de","Cantidad de subsidio para el empleo mensual"]
[null,"$","$","$","%",null,"$","$","$"]
[null,0.01,746.04,0,1.92,null,0.01,1768.96,407.02]
[null,746.05,6332.05,14.32,6.4,null,1768.97,2653.38,406.83]
[null,6332.06,11128.01,371.83,10.88,null,2653.39,3472.84,406.62]
[null,11128.02,12935.82,893.63,16,null,3472.85,3537.87,392.77]
[null,12935.83,15487.71,1182.8800000000001,17.920000000000002,null,3537.88,4446.1499999999996,382.46]
[null,15487.72,31236.49,1640.18,21.36,null,4446.16,4717.18,354.23]
[null,31236.5,49233,5004.12,23.52,null,4717.1899999999996,5335.42,324.87]
[null,49233.01,93993.9,9236.89,30,null,5335.43,6224.67,294.63]
[null,93993.91,125325.2,22665.17,32,null,6224.68,7113.9,253.54]
[null,125325.21,375975.61,32691.18,34,null,7113.91,7382.33,217.61]
[null,375975.62,"En adelante",117912.32000000001,35,null,7382.34,"En adelante",0]
[]
[]
[null,"2. Tarifa para el cálculo del impuesto correspondiente al ejercicio 2023."]
[null,"Límite inferior","Límite superior","Cuota fija","Por ciento para aplicarse sobre"]
[null,null,null,null,"el excedente del límite inferior"]
[null,"$","$","$","%"]
[null,0.01,8952.49,0,1.92]
[null,8952.5,75984.55,171.88,6.4]
[null,75984.56,133536.07,4461.9399999999996,10.88]
[null,133536.07999999999,155229.79999999999,10723.55,16]
[null,155229.81,185852.57,14194.54,17.920000000000002]
[null,185852.58,374837.88,19682.13,21.36]
[null,374837.89,590795.99,60049.4,23.52]
[null,590796,1127926.8400000001,110842.74,30]
[null,1127926.8500000001,1503902.46,271981.99,32]
[null,1503902.47,4511707.37,392294.17,34]
[null,4511707.38,"En adelante",1414947.85,35]

{"sheet":"TARIFAS","index":15,"n_rows":245,"n_cols":9,"rows_kept":245,"cut":false,"hidden":true,"merged":[[230,1,230,4],[148,1,148,4],[164,1,164,4],[180,1,180,4],[196,1,196,4],[212,1,212,4],[68,1,68,4],[84,1,84,4],[100,1,100,4],[116,1,116,4],[132,1,132,4],[3,1,3,4],[3,6,3,8],[4,6,4,8],[36,1,36,4],[52,1,52,4]]}
[]
[]
[]
[null,"5. Tarifa aplicable durante 2022 para el cálculo de los pagos provisionales mensuales.",null,null,null,null,"Tabla del subsidio para el empleo aplicable a la tarifa del numeral 5 del rubro B."]
[null,"Límite inferior","Límite superior","Cuota fija","Por ciento para aplicarse sobre",null,"Monto de ingresos que sirven de base para calcular el impuesto"]
[null,null,null,null,"el excedente del límite inferior",null,"Para Ingresos de","Hasta Ingresos de","Cantidad de subsidio para el empleo mensual"]
[null,"$","$","$","%",null,"$","$","$"]
[null,0.01,644.58000000000004,0,1.92,null,0.01,1768.96,407.02]
[null,644.59,5470.92,12.38,6.4,null,1768.97,2653.38,406.83]
[null,5470.93,9614.66,321.26,10.88,null,2653.39,3472.84,406.62]
[null,9614.67,11176.62,772.1,16,null,3472.85,3537.87,392.77]
[null,11176.63,13381.47,1022.01,17.920000000000002,null,3537.88,4446.1499999999996,382.46]
[null,13381.48,26988.5,1417.12,21.36,null,4446.16,4717.18,354.23]
[null,26988.51,42537.58,4323.58,23.52,null,4717.1899999999996,5335.42,324.87]
[null,42537.59,81211.25,7980.73,30,null,5335.43,6224.67,294.63]
[null,81211.259999999995,108281.67,19582.830000000002,32,null,6224.68,7113.9,253.54]
[null,108281.68,324845.01,28245.360000000001,34,null,7113.91,7382.33,217.61]
[null,324845.02,"En adelante",101876.9,35,null,7382.34,"En adelante",0]
[]
[]
[]
[null,"Descripción","Días"]
[null,"Diario",1]
[null,"Semanal",7]
[null,"Catorcenal",14]
[null,"Quincenal",30]
[null,"Mensual",30]
[null,"Bimestral",60]
[null,"Unidad obra",30]
[null,"Comisión",30]
[null,"Precio alzado",30]
[null,"Decenal",10]
[null,"Otra Periodicidad",30]
[]
[]
[]
[null,"6. Tarifa para el pago provisional del mes de enero de 2023, aplicable a los ingresos que perciban los contribuyentes a que se refiere el Capítulo II, Sección I, del Título IV de la Ley del Impuesto sobre  la Renta."]
[null,"Límite inferior","Límite superior","Cuota fija","Por ciento para aplicarse sobre"]
[null,null,null,null,"el excedente del límite inferior"]
[null,"$","$","$","%"]
[null,0.01,746.04,0,1.92]
[null,746.05,6332.05,14.32,6.4]
[null,6332.06,11128.01,371.83,10.88]
[null,11128.02,12935.82,893.63,16]
[null,12935.83,15487.71,1182.8800000000001,17.920000000000002]
[null,15487.72,31236.49,1640.18,21.36]
[null,31236.5,49233,5004.12,23.52]
[null,49233.01,93993.9,9236.89,30]
[null,93993.91,125325.2,22665.17,32]
[null,125325.21,375975.61,32691.18,34]
[null,375975.62,"En adelante",117912.32000000001,35]
[]
[null,"Tarifa para el pago provisional del mes de febrero de 2023, aplicable a los ingresos que perciban los contribuyentes a que se refiere el Capítulo II, Sección I, del Título IV de la Ley del Impuesto sobre la Renta."]
[null,"Límite inferior","Límite superior","Cuota fija","Por ciento para aplicarse sobre"]
[null,null,null,null,"el excedente del límite inferior"]
[null,"$","$","$","%"]
[null,0.01,1492.08,0,1.92]
[null,1492.09,12664.1,28.64,6.4]
[null,12664.11,22256.02,743.66,10.88]
[null,22256.03,25871.64,1787.26,16]
[null,25871.65,30975.42,2365.7600000000002,17.920000000000002]
[null,30975.43,62472.98,3280.36,21.36]
[null,62472.99,98466,10008.24,23.52]
[null,98466.01,187987.8,18473.78,30]
[null,187987.81,250650.4,45330.34,32]
[null,250650.41,751951.22,65382.36,34]
[null,751951.23,"En adelante",235824.64000000001,35]
[]
[null,"Tarifa para el pago provisional del mes de marzo de 2023, aplicable a los ingresos que perciban los contribuyentes a que se refiere el Capítulo II, Sección I, del Título IV de la Ley del Impuesto sobre la Renta."]
[null,"Límite inferior","Límite superior","Cuota fija","Por ciento para aplicarse sobre"]
[null,null,null,null,"el excedente del límite inferior"]
[null,"$","$","$","%"]
[null,0.01,2238.12,0,1.92]
[null,2238.13,18996.150000000001,42.96,6.4]
[null,18996.16,33384.03,1115.49,10.88]
[null,33384.04,38807.46,2680.89,16]
[null,38807.47,46463.13,3548.64,17.920000000000002]
[null,46463.14,93709.47,4920.54,21.36]
[null,93709.48,147699,15012.36,23.52]
[null,147699.01,281981.7,27710.67,30]
[null,281981.71000000002,375975.6,67995.509999999995,32]
[null,375975.61,1127926.83,98073.54,34]
[null,1127926.8400000001,"En adelante",353736.96000000002,35]
[]
[null,"Tarifa para el pago provisional del mes de abril de 2023, aplicable a los ingresos que perciban los contribuyentes a que se refiere el Capítulo II, Sección I, del Título IV de la Ley del Impuesto sobre la Renta."]
[null,"Límite inferior","Límite superior","Cuota fija","Por ciento para aplicarse sobre"]
[null,null,null,null,"el excedente del límite inferior"]
[null,"$","$","$","%"]
[null,0.01,2984.16,0,1.92]
[null,2984.17,25328.2,57.28,6.4]
[null,25328.21,44512.04,1487.32,10.88]
[null,44512.05,51743.28,3574.52,16]
[null,51743.29,61950.84,4731.5200000000004,17.920000000000002]
[null,61950.85,124945.96,6560.72,21.36]
[null,124945.97,196932,20016.48,23.52]
[null,196932.01,375975.6,36947.56,30]
[null,375975.61,501300.8,90660.68,32]
[null,501300.81,1503902.44,130764.72,34]
[null,1503902.45,"En adelante",471649.28000000003,35]
[]
[null,"Tarifa para el pago provisional del mes de mayo de 2023, aplicable a los ingresos que perciban los contribuyentes a que se refiere el Capítulo II, Sección I, del Título IV de la Ley del Impuesto sobre la Renta."]
[null,"Límite inferior","Límite superior","Cuota fija","Por ciento para aplicarse sobre"]
[null,null,null,null,"el excedente del límite inferior"]
[null,"$","$","$","%"]
[null,0.01,3730.2,0,1.92]
[null,3730.21,31660.25,71.599999999999994,6.4]
[null,31660.26,55640.05,1859.15,10.88]
[null,55640.06,64679.1,4468.1499999999996,16]
[null,64679.11,77438.55,5914.4,17.920000000000002]
[null,77438.559999999998,156182.45000000001,8200.9,21.36]
[null,156182.46,246165,25020.6,23.52]
[null,246165.01,469969.5,46184.45,30]
[null,469969.51,626626,113325.85,32]
[null,626626.01,1879878.05,163455.9,34]
[null,1879878.06,"En adelante",589561.59999999998,35]
[]
[null,"Tarifa para el pago provisional del mes de junio de 2023, aplicable a los ingresos que perciban los contribuyentes a que se refiere el Capítulo II, Sección I, del Título IV de la Ley del Impuesto sobre la Renta."]
[null,"Límite inferior","Límite superior","Cuota fija","Por ciento para aplicarse sobre"]
[null,null,null,null,"el excedente del límite inferior"]
[null,"$","$","$","%"]
[null,0.01,4476.24,0,1.92]
[null,4476.25,37992.300000000003,85.92,6.4]
[null,37992.31,66768.06,2230.98,10.88]
[null,66768.070000000007,77614.92,5361.78,16]
[null,77614.929999999993,92926.26,7097.28,17.920000000000002]
[null,92926.27,187418.94,9841.08,21.36]
[null,187418.95,295398,30024.720000000001,23.52]
[null,295398.01,563963.4,55421.34,30]
[null,563963.41,751951.2,135991.01999999999,32]
[null,751951.21,2255853.66,196147.08,34]
[null,2255853.67,"En adelante",707473.92000000004,35]
[]
[null,"Tarifa para el pago provisional del mes de julio de 2023, aplicable a los ingresos que perciban los contribuyentes a que se refiere el Capítulo II, Sección I, del Título IV de la Ley del Impuesto sobre la Renta."]
[null,"Límite inferior","Límite superior","Cuota fija","Por ciento para aplicarse sobre"]
[null,null,null,null,"el excedente del límite inferior"]
[null,"$","$","$","%"]
[null,0.01,5222.28,0,1.92]
[null,5222.29,44324.35,100.24,6.4]
[null,44324.36,77896.070000000007,2602.81,10.88]
[null,77896.08,90550.74,6255.41,16]
[null,90550.75,108413.97,8280.16,17.920000000000002]
[null,108413.98,218655.43,11481.26,21.36]
[null,218655.44,344631,35028.839999999997,23.52]
[null,344631.01,657957.30000000005,64658.23,30]
[null,657957.31000000006,877276.4,158656.19,32]
[null,877276.41,2631829.27,228838.26,34]
[null,2631829.2799999998,"En adelante",825386.24,35]
[]
[null,"Tarifa para el pago provisional del mes de agosto de 2023, aplicable a los ingresos que perciban los contribuyentes a que se refiere el Capítulo II, Sección I, del Título IV de la Ley del Impuesto sobre la Renta."]
[null,"Límite inferior","Límite superior","Cuota fija","Por ciento para aplicarse sobre"]
[null,null,null,null,"el excedente del límite inferior"]
[null,"$","$","$","%"]
[null,0.01,5968.32,0,1.92]
[null,5968.33,50656.4,114.56,6.4]
[null,50656.41,89024.08,2974.64,10.88]
[null,89024.09,103486.56,7149.04,16]
[null,103486.57,123901.68,9463.0400000000009,17.920000000000002]
[null,123901.69,249891.92,13121.44,21.36]
[null,249891.93,393864,40032.959999999999,23.52]
[null,393864.01,751951.2,73895.12,30]
[null,751951.21,1002601.6,181321.36,32]
[null,1002601.61,3007804.88,261529.44,34]
[null,3007804.89,"En adelante",943298.56000000006,35]
[]
[null,"Tarifa para el pago provisional del mes de septiembre de 2023, aplicable a los ingresos que perciban los contribuyentes a que se refiere el Capítulo II, Sección I, del Título IV de la Ley del Impuesto sobre la Renta."]
[null,"Límite inferior","Límite superior","Cuota fija","Por ciento para aplicarse sobre"]
[null,null,null,null,"el excedente del límite inferior"]
[null,"$","$","$","%"]
[null,0.01,6714.36,0,1.92]
[null,6714.37,56988.45,128.88,6.4]
[null,56988.46,100152.09,3346.47,10.88]
[null,100152.1,116422.38,8042.67,16]
[null,116422.39,139389.39000000001,10645.92,17.920000000000002]
[null,139389.4,281128.40999999997,14761.62,21.36]
[null,281128.42,443097,45037.08,23.52]
[null,443097.01,845945.1,83132.009999999995,30]
[null,845945.11,1127926.8,203986.53,32]
[null,1127926.81,3383780.49,294220.62,34]
[null,3383780.5,"En adelante",1061210.8799999999,35]
[]
[null,"Tarifa para el pago provisional del mes de octubre de 2023, aplicable a los ingresos que perciban los contribuyentes a que se refiere el Capítulo II, Sección I, del Título IV de la Ley del Impuesto sobre la Renta."]
[null,"Límite inferior","Límite superior","Cuota fija","Por ciento para aplicarse sobre"]
[null,null,null,null,"el excedente del límite inferior"]
[null,"$","$","$","%"]
[null,0.01,7460.4,0,1.92]
[null,7460.41,63320.5,143.19999999999999,6.4]
[null,63320.51,111280.1,3718.3,10.88]
[null,111280.11,129358.2,8936.2999999999993,16]
[null,129358.21,154877.1,11828.8,17.920000000000002]
[null,154877.10999999999,312364.90000000002,16401.8,21.36]
[null,312364.90999999997,492330,50041.2,23.52]
[null,492330.01,939939,92368.9,30]
[null,939939.01,1253252,226651.7,32]
[null,1253252.01,3759756.1,326911.8,34]
[null,3759756.11,"En adelante",1179123.2,35]
[]
[null,"Tarifa para el pago provisional del mes de noviembre de 2023, aplicable a los ingresos que perciban los contribuyentes a que se refiere el Capítulo II, Sección I, del Título IV de la Ley del Impuesto sobre la Renta."]
[null,"Límite inferior","Límite superior","Cuota fija","Por ciento para aplicarse sobre"]
[null,null,null,null,"el excedente del límite inferior"]
[null,"$","$","$","%"]
[null,0.01,8206.44,0,1.92]
[null,8206.4500000000007,69652.55,157.52000000000001,6.4]
[null,69652.56,122408.11,4090.13,10.88]
[null,122408.12,142294.01999999999,9829.93,16]
[null,142294.03,170364.81,13011.68,17.920000000000002]
[null,170364.82,343601.39,18041.98,21.36]
[null,343601.4,541563,55045.32,23.52]
[null,541563.01,1033932.9,101605.79,30]
[null,1033932.91,1378577.2,249316.87,32]
[null,1378577.21,4135731.71,359602.98,34]
[null,4135731.72,"En adelante",1297035.52,35]
[]
[null,"Tarifa para el pago provisional del mes de diciembre de 2023, aplicable a los ingresos que perciban los contribuyentes a que se refiere el Capítulo II, Sección I, del Título IV de la Ley del Impuesto sobre la Renta."]
[null,"Límite inferior","Límite superior","Cuota fija","Por ciento para aplicarse sobre"]
[null,null,null,null,"el excedente del límite inferior"]
[null,"$","$","$","%"]
[null,0.01,8952.49,0,1.92]
[null,8952.5,75984.55,171.88,6.4]
[null,75984.56,133536.07,4461.9399999999996,10.88]
[null,133536.07999999999,155229.79999999999,10723.55,16]
[null,155229.81,185852.57,14194.54,17.920000000000002]
[null,185852.58,374837.88,19682.13,21.36]
[null,374837.89,590795.99,60049.4,23.52]
[null,590796,1127926.8400000001,110842.74,30]
[null,1127926.8500000001,1503902.46,271981.99,32]
[null,1503902.47,4511707.37,392294.17,34]
[null,4511707.38,"En adelante",1414947.85,35]
[]
[]
[]
[null,"2. Tarifa para el cálculo del impuesto correspondiente al ejercicio 2023."]
[null,"Límite inferior","Límite superior","Cuota fija","Por ciento para aplicarse sobre"]
[null,null,null,null,"el excedente del límite inferior"]
[null,"$","$","$","%"]
[null,0.01,8952.49,0,1.92]
[null,8952.5,75984.55,171.88,6.4]
[null,75984.56,133536.07,4461.9399999999996,10.88]
[null,133536.07999999999,155229.79999999999,10723.55,16]
[null,155229.81,185852.57,14194.54,17.920000000000002]
[null,185852.58,374837.88,19682.13,21.36]
[null,374837.89,590795.99,60049.4,23.52]
[null,590796,1127926.8400000001,110842.74,30]
[null,1127926.8500000001,1503902.46,271981.99,32]
[null,1503902.47,4511707.37,392294.17,34]
[null,4511707.38,"En adelante",1414947.85,35]

{"sheet":"CATALOGO","index":16,"n_rows":229,"n_cols":11,"rows_kept":229,"cut":false,"hidden":true,"merged":[]}
[]
[]
[]
[null,"c_RiesgoPuesto","Descripción","Fecha inicio de vigencia","Fecha fin de vigencia",null,null,"c_TipoPercepcion","Descripción","Fecha inicio de vigencia","Fecha fin de vigencia"]
[null,1,"Clase I","2017-01-01",null,null,null,1,"Sueldos, Salarios  Rayas y Jornales","2016-11-01"]
[null,2,"Clase II","2017-01-01",null,null,null,2,"Gratificación Anual (Aguinaldo)","2016-11-01"]
[null,3,"Clase III","2017-01-01",null,null,null,3,"Participación de los Trabajadores en las Utilidades PTU","2016-11-01"]
[null,4,"Clase IV","2017-01-01",null,null,null,4,"Reembolso de Gastos Médicos Dentales y Hospitalarios","2016-11-01"]
[null,5,"Clase V","2017-01-01",null,null,null,5,"Fondo de Ahorro","2016-11-01"]
[null,99,"No aplica","2017-08-13",null,null,null,6,"Caja de ahorro","2016-11-01"]
[null,null,null,null,null,null,null,9,"Contribuciones a Cargo del Trabajador Pagadas por el Patrón","2016-11-01"]
[null,null,null,null,null,null,null,10,"Premios por puntualidad","2016-11-01"]
[null,"c_TipoRegimen","Descripción","Fecha inicio de vigencia","Fecha fin de vigencia",null,null,11,"Prima de Seguro de vida","2016-11-01"]
[null,2,"Sueldos","2017-01-01",null,null,null,12,"Seguro de Gastos Médicos Mayores","2016-11-01"]
[null,3,"Jubilados","2017-01-01",null,null,null,13,"Cuotas Sindicales Pagadas por el Patrón","2016-11-01"]
[null,4,"Pensionados","2017-01-01",null,null,null,14,"Subsidios por incapacidad","2016-11-01"]
[null,5,"Asimilados Miembros Sociedades Cooperativas Produccion","2017-01-01",null,null,null,15,"Becas para trabajadores y/o hijos","2016-11-01"]
[null,6,"Asimilados Integrantes Sociedades Asociaciones Civiles","2017-01-01",null,null,null,19,"Horas extra","2016-11-01"]
[null,7,"Asimilados Miembros consejos","2017-01-01",null,null,null,20,"Prima dominical","2016-11-01"]
[null,8,"Asimilados comisionistas","2017-01-01",null,null,null,21,"Prima vacacional","2016-11-01"]
[null,9,"Asimilados Honorarios","2017-01-01",null,null,null,22,"Prima por antigüedad","2016-11-01"]
[null,10,"Asimilados acciones","2017-01-01",null,null,null,23,"Pagos por separación","2016-11-01"]
[null,11,"Asimilados otros","2017-01-01",null,null,null,24,"Seguro de retiro","2016-11-01"]
[null,12,"Jubilados o Pensionados","2017-03-27",null,null,null,25,"Indemnizaciones","2016-11-01"]
[null,13,"Indemnización o Separación","2018-10-15",null,null,null,26,"Reembolso por funeral","2016-11-01"]
[null,99,"Otro Regimen","2017-01-01",null,null,null,27,"Cuotas de seguridad social pagadas por el patrón","2016-11-01"]
[null,null,null,null,null,null,null,28,"Comisiones","2016-11-01"]
[null,null,null,null,null,null,null,29,"Vales de despensa","2016-11-01"]
[null,"c_TipoContrato","Descripción",null,null,null,null,30,"Vales de restaurante","2016-11-01"]
[null,1,"Contrato de trabajo por tiempo indeterminado",null,null,null,null,31,"Vales de gasolina","2016-11-01"]
[null,2,"Contrato de trabajo para obra determinada",null,null,null,null,32,"Vales de ropa","2016-11-01"]
[null,3,"Contrato de trabajo por tiempo determinado",null,null,null,null,33,"Ayuda para renta","2016-11-01"]
[null,4,"Contrato de trabajo por temporada",null,null,null,null,34,"Ayuda para artículos escolares","2016-11-01"]
[null,5,"Contrato de trabajo sujeto a prueba",null,null,null,null,35,"Ayuda para anteojos","2016-11-01"]
[null,6,"Contrato de trabajo con capacitación inicial",null,null,null,null,36,"Ayuda para transporte","2016-11-01"]
[null,7,"Modalidad de contratación por pago de hora laborada",null,null,null,null,37,"Ayuda para gastos de funeral","2016-11-01"]
[null,8,"Modalidad de trabajo por comisión laboral",null,null,null,null,38,"Otros ingresos por salarios","2016-11-01"]
[null,9,"Modalidades de contratación donde no existe relación de trabajo",null,null,null,null,39,"Jubilaciones, pensiones o haberes de retiro","2016-11-01"]
[null,10,"Jubilación, pensión, retiro.",null,null,null,null,44,"Jubilaciones, pensiones o haberes de retiro en parcialidades","2016-11-01"]
[null,99,"Otro contrato",null,null,null,null,45,"Ingresos en acciones o títulos valor que representan bienes","2016-11-01"]
[null,null,null,null,null,null,null," 046","Ingresos asimilados a salarios","2016-11-01"]
[null,null,null,null,null,null,null," 047","Alimentación","2016-11-01"]
[null,"c_PeriodicidadPago","Descripción","Fecha inicio de vigencia","Fecha fin de vigencia",null,null,48,"Habitación","2016-11-01"]
[null,1,"Diario","2016-11-01",null,null,null,49,"Premios por asistencia","2016-11-01"]
[null,2,"Semanal","2016-11-01",null,null,null,50,"Viáticos","2017-01-06"]
[null,3,"Catorcenal","2016-11-01",null,null,null,51,"Pagos por gratificaciones, primas, compensaciones, recompensas u otros a extrabajadores derivados de jubilación en parcialidades","2018-10-15"]
[null,4,"Quincenal","2016-11-01",null,null,null,52,"Pagos que se realicen a extrabajadores que obtengan una jubilación en parcialidades derivados de la ejecución de resoluciones judicial o de un laudo","2018-10-15"]
[null,5,"Mensual","2016-11-01",null,null,null,53,"Pagos que se realicen a extrabajadores que obtengan una jubilación en una sola exhibición derivados de la ejecución de resoluciones judicial o de un laudo","2018-10-15"]
[null,6,"Bimestral","2016-11-01"]
[null,7,"Unidad obra","2016-11-01"]
[null,8,"Comisión","2016-11-01",null,null,null," c_TipoOtroPago","Descripción","Fecha inicio de vigencia","Fecha fin de vigencia"]
[null,9,"Precio alzado","2016-11-01",null,null,null,1,"Reintegro de ISR pagado en exceso (siempre que no haya sido enterado al SAT).","2017-01-01"]
[null,10,"Decenal","2017-01-19",null,null,null,2,"Subsidio para el empleo (efectivamente entregado al trabajador).","2017-01-01"]
[null,99,"Otra Periodicidad","2016-11-01",null,null,null,3,"Viáticos (entregados al trabajador).","2017-01-01"]
[null,null,null,null,null,null,null,4,"Aplicación de saldo a favor por compensación anual.","2017-01-01"]
[null,null,null,null,null,null,null,5,"Reintegro de ISR retenido en exceso de ejercicio anterior (siempre que no haya sido enterado al SAT).","2017-12-05"]
[null,"c_TipoIncapacidad","Descripción",null,null,null,null,999,"Pagos distintos a los listados y que no deben considerarse como ingreso por sueldos, salarios o ingresos asimilados.","2017-01-01"]
[null,1,"Riesgo de trabajo."]
[null,2,"Enfermedad en general."]
[null,3,"Maternidad.",null,null,null,null,"c_TipoDeduccion","Descripción","Fecha inicio de vigencia","Fecha fin de vigencia"]
[null,null,null,null,null,null,null,1,"Seguridad social","2016-11-01"]
[null,null,null,null,null,null,null,2,"ISR","2016-11-01"]
[null,"c_TipoJornada","Descripción",null,null,null,null,3,"Aportaciones a retiro, cesantía en edad avanzada y vejez.","2016-11-01"]
[null,1,"Diurna",null,null,null,null,4,"Otros","2016-11-01"]
[null,2,"Nocturna",null,null,null,null,5,"Aportaciones a Fondo de vivienda","2016-11-01"]
[null,3,"Mixta",null,null,null,null,6,"Descuento por incapacidad","2016-11-01"]
[null,4,"Por hora",null,null,null,null,7,"Pensión alimenticia","2016-11-01"]
[null,5,"Reducida",null,null,null,null,8,"Renta","2016-11-01"]
[null,6,"Continuada",null,null,null,null,9,"Préstamos provenientes del Fondo Nacional de la Vivienda para los Trabajadores","2016-11-01"]
[null,7,"Partida",null,null,null,null,10,"Pago por crédito de vivienda","2016-11-01"]
[null,8,"Por turnos",null,null,null,null,11,"Pago de abonos INFONACOT","2016-11-01"]
[null,99,"Otra Jornada",null,null,null,null,12,"Anticipo de salarios","2016-11-01"]
[null,null,null,null,null,null,null,13,"Pagos hechos con exceso al trabajador","2016-11-01"]
[null,null,null,null,null,null,null,14,"Errores","2016-11-01"]
[null,"c_Estado","c_Pais","Nombre del estado",null,null,null,15,"Pérdidas","2016-11-01"]
[null,"AGU","MEX","Aguascalientes",null,null,null,16,"Averías","2016-11-01"]
[null,"BCN","MEX","Baja California",null,null,null,17,"Adquisición de artículos producidos por la empresa o establecimiento","2016-11-01"]
[null,"BCS","MEX","Baja California Sur",null,null,null,18,"Cuotas para la constitución y fomento de sociedades cooperativas y de cajas de ahorro","2016-11-01"]
[null,"CAM","MEX","Campeche",null,null,null,19,"Cuotas sindicales","2016-11-01"]
[null,"CHP","MEX","Chiapas",null,null,null,20,"Ausencia (Ausentismo)","2016-11-01"]
[null,"CHH","MEX","Chihuahua",null,null,null,21,"Cuotas obrero patronales","2016-11-01"]
[null,"COA","MEX","Coahuila",null,null,null,22,"Impuestos Locales","2016-11-01"]
[null,"COL","MEX","Colima",null,null,null,23,"Aportaciones voluntarias","2016-11-01"]
[null,"DIF","MEX","Ciudad de México",null,null,null,24,"Ajuste en Gratificación Anual (Aguinaldo) Exento","2017-01-06"]
[null,"DUR","MEX","Durango",null,null,null,25,"Ajuste en Gratificación Anual (Aguinaldo) Gravado","2017-01-06"]
[null,"GUA","MEX","Guanajuato",null,null,null,26,"Ajuste en Participación de los Trabajadores en las Utilidades PTU Exento","2017-01-06"]
[null,"GRO","MEX","Guerrero",null,null,null,27,"Ajuste en Participación de los Trabajadores en las Utilidades PTU Gravado","2017-01-06"]
[null,"HID","MEX","Hidalgo",null,null,null,28,"Ajuste en Reembolso de Gastos Médicos Dentales y Hospitalarios Exento","2017-01-06"]
[null,"JAL","MEX","Jalisco",null,null,null,29,"Ajuste en Fondo de ahorro Exento","2017-01-06"]
[null,"MEX","MEX","Estado de México",null,null,null,30,"Ajuste en Caja de ahorro Exento","2017-01-06"]
[null,"MIC","MEX","Michoacán",null,null,null,31,"Ajuste en Contribuciones a Cargo del Trabajador Pagadas por el Patrón Exento","2017-01-06"]
[null,"MOR","MEX","Morelos",null,null,null,32,"Ajuste en Premios por puntualidad Gravado","2017-01-06"]
[null,"NAY","MEX","Nayarit",null,null,null,33,"Ajuste en Prima de Seguro de vida Exento","2017-01-06"]
[null,"NLE","MEX","Nuevo León",null,null,null,34,"Ajuste en Seguro de Gastos Médicos Mayores Exento","2017-01-06"]
[null,"OAX","MEX","Oaxaca",null,null,null,35,"Ajuste en Cuotas Sindicales Pagadas por el Patrón Exento","2017-01-06"]
[null,"PUE","MEX","Puebla",null,null,null,36,"Ajuste en Subsidios por incapacidad Exento","2017-01-06"]
[null,"QUE","MEX","Querétaro",null,null,null,37,"Ajuste en Becas para trabajadores y/o hijos Exento","2017-01-06"]
[null,"ROO","MEX","Quintana Roo",null,null,null,38,"Ajuste en Horas extra Exento","2017-01-06"]
[null,"SLP","MEX","San Luis Potosí",null,null,null,39,"Ajuste en Horas extra Gravado","2017-01-06"]
[null,"SIN","MEX","Sinaloa",null,null,null,40,"Ajuste en Prima dominical Exento","2017-01-06"]
[null,"SON","MEX","Sonora",null,null,null,41,"Ajuste en Prima dominical Gravado","2017-01-06"]
[null,"TAB","MEX","Tabasco",null,null,null,42,"Ajuste en Prima vacacional Exento","2017-01-06"]
[null,"TAM","MEX","Tamaulipas",null,null,null,43,"Ajuste en Prima vacacional Gravado","2017-01-06"]
[null,"TLA","MEX","Tlaxcala",null,null,null,44,"Ajuste en Prima por antigüedad Exento","2017-01-06"]
[null,"VER","MEX","Veracruz",null,null,null,45,"Ajuste en Prima por antigüedad Gravado","2017-01-06"]
[null,"YUC","MEX","Yucatán",null,null,null,46,"Ajuste en Pagos por separación Exento","2017-01-06"]
[null,"ZAC","MEX","Zacatecas",null,null,null,47,"Ajuste en Pagos por separación Gravado","2017-01-06"]
[null,"AL","USA","Alabama",null,null,null,48,"Ajuste en Seguro de retiro Exento","2017-01-06"]
[null,"AK","USA","Alaska",null,null,null,49,"Ajuste en Indemnizaciones Exento","2017-01-06"]
[null,"AZ","USA","Arizona",null,null,null,50,"Ajuste en Indemnizaciones Gravado","2017-01-06"]
[null,"AR","USA","Arkansas",null,null,null,51,"Ajuste en Reembolso por funeral Exento","2017-01-06"]
[null,"CA","USA","California",null,null,null,52,"Ajuste en Cuotas de seguridad social pagadas por el patrón Exento","2017-01-06"]
[null,"NC","USA","Carolina del Norte",null,null,null,53,"Ajuste en Comisiones Gravado","2017-01-06"]
[null,"SC","USA","Carolina del Sur",null,null,null,54,"Ajuste en Vales de despensa Exento","2017-01-06"]
[null,"CO","USA","Colorado",null,null,null,55,"Ajuste en Vales de restaurante Exento","2017-01-06"]
[null,"CT","USA","Connecticut",null,null,null,56,"Ajuste en Vales de gasolina Exento","2017-01-06"]
[null,"ND","USA","Dakota del Norte",null,null,null,57,"Ajuste en Vales de ropa Exento","2017-01-06"]
[null,"SD","USA","Dakota del Sur",null,null,null,58,"Ajuste en Ayuda para renta Exento","2017-01-06"]
[null,"DE","USA","Delaware",null,null,null,59,"Ajuste en Ayuda para artículos escolares Exento","2017-01-06"]
[null,"FL","USA","Florida",null,null,null,60,"Ajuste en Ayuda para anteojos Exento","2017-01-06"]
[null,"GA","USA","Georgia",null,null,null,61,"Ajuste en Ayuda para transporte Exento","2017-01-06"]
[null,"HI","USA","Hawái",null,null,null,62,"Ajuste en Ayuda para gastos de funeral Exento","2017-01-06"]
[null,"ID","USA","Idaho",null,null,null,63,"Ajuste en Otros ingresos por salarios Exento","2017-01-06"]
[null,"IL","USA","Illinois",null,null,null,64,"Ajuste en Otros ingresos por salarios Gravado","2017-01-06"]
[null,"IN","USA","Indiana",null,null,null,65,"Ajuste en Jubilaciones, pensiones o haberes de retiro en una sola exhibición Exento ","2018-10-15"]
[null,"IA","USA","Iowa",null,null,null,66,"Ajuste en Jubilaciones, pensiones o haberes de retiro en una sola exhibición Gravado","2018-10-15"]
[null,"KS","USA","Kansas",null,null,null,67,"Ajuste en Pagos por separación Acumulable","2017-01-06"]
[null,"KY","USA","Kentucky",null,null,null,68,"Ajuste en Pagos por separación No acumulable","2017-01-06"]
[null,"LA","USA","Luisiana",null,null,null,69,"Ajuste en Jubilaciones, pensiones o haberes de retiro en parcialidades Exento","2018-10-15"]
[null,"ME","USA","Maine",null,null,null,70,"Ajuste en Jubilaciones, pensiones o haberes de retiro en parcialidades Gravado","2018-10-15"]
[null,"MD","USA","Maryland",null,null,null,71,"Ajuste en Subsidio para el empleo (efectivamente entregado al trabajador)","2017-01-06"]
[null,"MA","USA","Massachusetts",null,null,null,72,"Ajuste en Ingresos en acciones o títulos valor que representan bienes Exento","2017-01-06","2018-10-14"]
[null,"MI","USA","Míchigan",null,null,null,73,"Ajuste en Ingresos en acciones o títulos valor que representan bienes Gravado","2017-01-06"]
[null,"MN","USA","Minnesota",null,null,null,74,"Ajuste en Alimentación Exento","2017-01-06"]
[null,"MS","USA","Misisipi",null,null,null,75,"Ajuste en Alimentación Gravado","2017-01-06"]
[null,"MO","USA","Misuri",null,null,null,76,"Ajuste en Habitación Exento","2017-01-06"]
[null,"MT","USA","Montana",null,null,null,77,"Ajuste en Habitación Gravado","2017-01-06"]
[null,"NE","USA","Nebraska",null,null,null,78,"Ajuste en Premios por asistencia","2017-01-06"]
[null,"NV","USA","Nevada",null,null,null,79,"Ajuste en Pagos distintos a los listados y que no deben considerarse como ingreso por sueldos, salarios o ingresos asimilados.","2017-01-06"]
[null,"NJ","USA","Nueva Jersey",null,null,null,80,"Ajuste en Viáticos gravados","2017-01-06"]
[null,"NY","USA","Nueva York",null,null,null,81,"Ajuste en Viáticos (entregados al trabajador)","2017-01-06"]
[null,"NH","USA","Nuevo Hampshire",null,null,null,"082","Ajuste en Fondo de ahorro Gravado","2017-01-06"]
[null,"NM","USA","Nuevo México",null,null,null,"083","Ajuste en Caja de ahorro Gravado","2017-01-06"]
[null,"OH","USA","Ohio",null,null,null,"084","Ajuste en Prima de Seguro de vida Gravado","2017-01-06"]
[null,"OK","USA","Oklahoma",null,null,null,"085","Ajuste en Seguro de Gastos Médicos Mayores Gravado","2017-01-06"]
[null,"OR","USA","Oregón",null,null,null,"086","Ajuste en Subsidios por incapacidad Gravado","2017-01-06"]
[null,"PA","USA","Pensilvania",null,null,null,"087","Ajuste en Becas para trabajadores y/o hijos Gravado","2017-01-06"]
[null,"RI","USA","Rhode Island",null,null,null,"088","Ajuste en Seguro de retiro Gravado","2017-01-06"]
[null,"TN","USA","Tennessee",null,null,null,"089","Ajuste en Vales de despensa Gravado","2017-01-06"]
[null,"TX","USA","Texas",null,null,null,"090","Ajuste en Vales de restaurante Gravado","2017-01-06"]
[null,"UT","USA","Utah",null,null,null,"091","Ajuste en Vales de gasolina Gravado","2017-01-06"]
[null,"VT","USA","Vermont",null,null,null,"092","Ajuste en Vales de ropa Gravado","2017-01-06"]
[null,"VA","USA","Virginia",null,null,null,"093","Ajuste en Ayuda para renta Gravado","2017-01-06"]
[null,"WV","USA","Virginia Occidental",null,null,null,"094","Ajuste en Ayuda para artículos escolares Gravado","2017-01-06"]
[null,"WA","USA","Washington",null,null,null,"095","Ajuste en Ayuda para anteojos Gravado","2017-01-06"]
[null,"WI","USA","Wisconsin",null,null,null,"096","Ajuste en Ayuda para transporte Gravado","2017-01-06"]
[null,"WY","USA","Wyoming",null,null,null,"097","Ajuste en Ayuda para gastos de funeral Gravado","2017-01-06"]
[null,"ON","CAN","Ontario ",null,null,null,"098","Ajuste a ingresos asimilados a salarios gravados","2017-01-06"]
[null,"QC","CAN"," Quebec ",null,null,null,"099","Ajuste a ingresos por sueldos y salarios gravados","2017-01-06"]
[null,"NS","CAN"," Nueva Escocia",null,null,null,100,"Ajuste en Viáticos exentos","2017-01-06"]
[null,"NB","CAN","Nuevo Brunswick ",null,null,null,101,"ISR Retenido de ejercicio anterior","2017-12-05"]
[null,"MB","CAN"," Manitoba",null,null,null,102,"Ajuste a pagos por gratificaciones, primas, compensaciones, recompensas u otros a extrabajadores derivados de jubilación en parcialidades, gravados","2018-10-15"]
[null,"BC","CAN"," Columbia Británica",null,null,null,103,"Ajuste a pagos que se realicen a extrabajadores que obtengan una jubilación en parcialidades derivados de la ejecución de una resolución judicial o de un laudo gravados","2018-10-15"]
[null,"PE","CAN"," Isla del Príncipe Eduardo",null,null,null,104,"Ajuste a pagos que se realicen a extrabajadores que obtengan una jubilación en parcialidades derivados de la ejecución de una resolución judicial o de un laudo exentos","2018-10-15"]
[null,"SK","CAN"," Saskatchewan",null,null,null,105,"Ajuste a pagos que se realicen a extrabajadores que obtengan una jubilación en una sola exhibición derivados de la ejecución de una resolución judicial o de un laudo gravados","2018-10-15"]
[null,"AB","CAN"," Alberta",null,null,null,106,"Ajuste a pagos que se realicen a extrabajadores que obtengan una jubilación en una sola exhibición derivados de la ejecución de una resolución judicial o de un laudo exentos","2018-10-15"]
[null,"NL","CAN"," Terranova y Labrador"]
[null,"NT","CAN"," Territorios del Noroeste"]
[null,"YT","CAN"," Yukón"]
[null,"UN","CAN"," Nunavut"]
[]
[]
[]
[]
[]
[]
[]
[]
[]
[]
[]
[]
[]
[]
[null,"c_TipoPercepcion","Descripción","Gravado","Exento","Régimen","Régimen consula","c_TipoRegimen","Descripción"]
[null,1,"Sueldos, Salarios  Rayas y Jornales","a","r",2,{"$f":"F186-B186","v":1},2,"Sueldos (Incluye ingresos señalados en la fracción I del artículo 94 de LISR)",2]
[null,2,"Gratificación Anual (Aguinaldo)","a","a",2,{"$f":"F187-B187","v":0},3,"Jubilados",3412]
[null,3,"Participación de los Trabajadores en las Utilidades PTU","a","a",2,-1,4,"Pensionados",3412]
[null,4,"Reembolso de Gastos Médicos Dentales y Hospitalarios","a","a",2,-2,5,"Asimilados Miembros Sociedades Cooperativas Produccion",567891011]
[null,5,"Fondo de Ahorro","a","a",2,-3,6,"Asimilados Integrantes Sociedades Asociaciones Civiles",567891011]
[null,6,"Caja de ahorro","a","a",2,-4,7,"Asimilados Miembros consejos",567891011]
[null,9,"Contribuciones a Cargo del Trabajador Pagadas por el Patrón","a","r",2,-7,8,"Asimilados comisionistas",567891011]
[null,10,"Premios por puntualidad","a","r",2,-8,9,"Asimilados Honorarios",567891011]
[null,11,"Prima de Seguro de vida","a","a",2,-9,10,"Asimilados acciones",567891011]
[null,12,"Seguro de Gastos Médicos Mayores","a","a",2,-10,11,"Asimilados otros",567891011]
[null,13,"Cuotas Sindicales Pagadas por el Patrón","a","a",2,-11,12,"Jubilados o Pensionados",3412]
[null,14,"Subsidios por incapacidad","a","a",2,-12,13,"Indemnización o Separación",13]
[null,15,"Becas para trabajadores y/o hijos","a","a",2,-13,99,"Otro Regimen",99]
[null,19,"Horas extra","a","a",2,-17]
[null,20,"Prima dominical","a","a",2,-18]
[null,21,"Prima vacacional","a","a",2,-19]
[null,24,"Seguro de retiro","a","a",2,-22]
[null,26,"Reembolso por funeral","a","a",2,-24]
[null,27,"Cuotas de seguridad social pagadas por el patrón","r","a",2,-25]
[null,28,"Comisiones","a","r",2,-26]
[null,29,"Vales de despensa","a","a",2,-27]
[null,30,"Vales de restaurante","a","a",2,-28]
[null,31,"Vales de gasolina","a","a",2,-29]
[null,32,"Vales de ropa","a","a",2,-30]
[null,33,"Ayuda para renta","a","a",2,-31]
[null,34,"Ayuda para artículos escolares","a","a",2,-32]
[null,35,"Ayuda para anteojos","a","a",2,-33]
[null,36,"Ayuda para transporte","a","a",2,-34]
[null,37,"Ayuda para gastos de funeral","a","a",2,-35]
[null,38,"Otros ingresos por salarios","a","a",2,-36]
[null,47,"Alimentación diferentes a los establecidos en el Art 94 último párrafo LISR","a","a",2,-45]
[null,48,"Habitación","a","a",2,-46]
[null,49,"Premios por asistencia","a","r",2,-47]
[null,50,"Viáticos","a","a",2,-48]
[null,39,"Jubilaciones, pensiones o haberes de retiro","a","a",3412,3373]
[null,44,"Jubilaciones, pensiones o haberes de retiro en parcialidades","a","a",3412,3368]
[null,51,"Pagos por gratificaciones, primas, compensaciones, recompensas u otros a extrabajadores derivados de jubilación en parcialidades","a","r",3412,3361]
[null,52,"Pagos que se realicen a extrabajadores que obtengan una jubilación en parcialidades derivados de la ejecución de resoluciones judicial o de un laudo","a","a",3412,3360]
[null,53,"Pagos que se realicen a extrabajadores que obtengan una jubilación en una sola exhibición derivados de la ejecución de resoluciones judicial o de un laudo","a","a",3412,3359]
[null,22,"Prima por antigüedad","a","a",13,-9]
[null,23,"Pagos por separación","a","a",13,-10]
[null,25,"Indemnizaciones","a","a",13,-12]
[null,45,"Ingresos en acciones o títulos valor que representan bienes","a","r",567891011,567890966]
[null,46,"Ingresos asimilados a salarios","a","r",567891011,567890965]

{"sheet":"c_Estado","index":17,"n_rows":100,"n_cols":6,"rows_kept":100,"cut":false,"hidden":true,"merged":[[0,0,0,2]]}
["Catálogo de estados. "]
["Versión CFDI","Versión catálogo","Revisión catálogo","Fecha publicación de catálogo","Fecha  inicio de vigencia del catálogo","Fecha fin de vigencia del catálogo"]
[4,1,0,0,"2022-01-01"]
[]
["c_Estado","c_Pais","Nombre del estado","Fecha inicio de vigencia","Fecha fin de vigencia"]
["AGU","MEX","Aguascalientes","2022-01-01"]
["BCN","MEX","Baja California","2022-01-01"]
["BCS","MEX","Baja California Sur","2022-01-01"]
["CAM","MEX","Campeche","2022-01-01"]
["CHP","MEX","Chiapas","2022-01-01"]
["CHH","MEX","Chihuahua","2022-01-01"]
["COA","MEX","Coahuila","2022-01-01"]
["COL","MEX","Colima","2022-01-01"]
["CMX","MEX","Ciudad de México","2022-01-01"]
["DUR","MEX","Durango","2022-01-01"]
["GUA","MEX","Guanajuato","2022-01-01"]
["GRO","MEX","Guerrero","2022-01-01"]
["HID","MEX","Hidalgo","2022-01-01"]
["JAL","MEX","Jalisco","2022-01-01"]
["MEX","MEX","Estado de México","2022-01-01"]
["MIC","MEX","Michoacán","2022-01-01"]
["MOR","MEX","Morelos","2022-01-01"]
["NAY","MEX","Nayarit","2022-01-01"]
["NLE","MEX","Nuevo León","2022-01-01"]
["OAX","MEX","Oaxaca","2022-01-01"]
["PUE","MEX","Puebla","2022-01-01"]
["QUE","MEX","Querétaro","2022-01-01"]
["ROO","MEX","Quintana Roo","2022-01-01"]
["SLP","MEX","San Luis Potosí","2022-01-01"]
["SIN","MEX","Sinaloa","2022-01-01"]
["SON","MEX","Sonora","2022-01-01"]
["TAB","MEX","Tabasco","2022-01-01"]
["TAM","MEX","Tamaulipas","2022-01-01"]
["TLA","MEX","Tlaxcala","2022-01-01"]
["VER","MEX","Veracruz","2022-01-01"]
["YUC","MEX","Yucatán","2022-01-01"]
["ZAC","MEX","Zacatecas","2022-01-01"]
["AL","USA","Alabama","2022-01-01"]
["AK","USA","Alaska","2022-01-01"]
["AZ","USA","Arizona","2022-01-01"]
["AR","USA","Arkansas","2022-01-01"]
["CA","USA","California","2022-01-01"]
["NC","USA","Carolina del Norte","2022-01-01"]
["SC","USA","Carolina del Sur","2022-01-01"]
["CO","USA","Colorado","2022-01-01"]
["CT","USA","Connecticut","2022-01-01"]
["ND","USA","Dakota del Norte","2022-01-01"]
["SD","USA","Dakota del Sur","2022-01-01"]
["DE","USA","Delaware","2022-01-01"]
["FL","USA","Florida","2022-01-01"]
["GA","USA","Georgia","2022-01-01"]
["HI","USA","Hawái","2022-01-01"]
["ID","USA","Idaho","2022-01-01"]
["IL","USA","Illinois","2022-01-01"]
["IN","USA","Indiana","2022-01-01"]
["IA","USA","Iowa","2022-01-01"]
["KS","USA","Kansas","2022-01-01"]
["KY","USA","Kentucky","2022-01-01"]
["LA","USA","Luisiana","2022-01-01"]
["ME","USA","Maine","2022-01-01"]
["MD","USA","Maryland","2022-01-01"]
["MA","USA","Massachusetts","2022-01-01"]
["MI","USA","Míchigan","2022-01-01"]
["MN","USA","Minnesota","2022-01-01"]
["MS","USA","Misisipi","2022-01-01"]
["MO","USA","Misuri","2022-01-01"]
["MT","USA","Montana","2022-01-01"]
["NE","USA","Nebraska","2022-01-01"]
["NV","USA","Nevada","2022-01-01"]
["NJ","USA","Nueva Jersey","2022-01-01"]
["NY","USA","Nueva York","2022-01-01"]
["NH","USA","Nuevo Hampshire","2022-01-01"]
["NM","USA","Nuevo México","2022-01-01"]
["OH","USA","Ohio","2022-01-01"]
["OK","USA","Oklahoma","2022-01-01"]
["OR","USA","Oregón","2022-01-01"]
["PA","USA","Pensilvania","2022-01-01"]
["RI","USA","Rhode Island","2022-01-01"]
["TN","USA","Tennessee","2022-01-01"]
["TX","USA","Texas","2022-01-01"]
["UT","USA","Utah","2022-01-01"]
["VT","USA","Vermont","2022-01-01"]
["VA","USA","Virginia","2022-01-01"]
["WV","USA","Virginia Occidental","2022-01-01"]
["WA","USA","Washington","2022-01-01"]
["WI","USA","Wisconsin","2022-01-01"]
["WY","USA","Wyoming","2022-01-01"]
["ON","CAN","Ontario ","2022-01-01"]
["QC","CAN"," Quebec ","2022-01-01"]
["NS","CAN"," Nueva Escocia","2022-01-01"]
["NB","CAN","Nuevo Brunswick ","2022-01-01"]
["MB","CAN"," Manitoba","2022-01-01"]
["BC","CAN"," Columbia Británica","2022-01-01"]
["PE","CAN"," Isla del Príncipe Eduardo","2022-01-01"]
["SK","CAN"," Saskatchewan","2022-01-01"]
["AB","CAN"," Alberta","2022-01-01"]
["NL","CAN"," Terranova y Labrador","2022-01-01"]
["NT","CAN"," Territorios del Noroeste","2022-01-01"]
["YT","CAN"," Yukón","2022-01-01"]
["UN","CAN"," Nunavut","2022-01-01"]

{"sheet":"GENERALES","index":18,"n_rows":32,"n_cols":12,"rows_kept":32,"cut":false,"hidden":true,"merged":[[8,5,8,6],[8,9,8,10],[3,1,3,3],[3,5,3,7],[3,9,3,11],[4,1,4,2],[4,5,4,6],[4,9,4,10]]}
[]
[null,"Datos generales para los calculos"]
[]
[null,"Tabla de vacaciones para trabajadores de no buques (art. 76 LFT)",null,null,null,"Días de aguinaldo que otroga la empresa (art. 87 LFT)",null,null,null,"Prima vacacional que otorga la empresa (art. 80 LFT)"]
[null,"Años",null,null,null,"Años",null,null,null,"Años"]
[null,"Mínimo","Máximo","Días",null,"Mínimo","Máximo","Días",null,"Mínimo","Máximo","Días"]
[null,0,1,12,null,0,30,15,null,0,30,0.25]
[null,{"$f":"C7+0.01","v":1.01},2,{"$f":"D7+2","v":14}]
[null,{"$f":"C8+0.01","v":2.0099999999999998},3,{"$f":"D8+2","v":16},null,"Salario mínimo",null,null,null,"Valor de la UMA"]
[null,3.01,4,18,null,"Zona norte",374.89,null,null,"Enero",103.74]
[null,4.01,5,20,null,"Otra",248.93,null,null,"Febrero",108.57]
[null,5.01,{"$f":"C11+5","v":10},22]
[null,10.01,{"$f":"C12+5","v":15},24]
[null,15.01,20,26,null,"Enero - Febrero",59,null,null,"Semanal",7]
[null,20.010000000000002,25,28,null,"Marzo - Abril",61,null,null,"Decenal",10]
[null,25.01,30,30,null,"Mayo - Junio",61,null,null,"Quincenal",15]
[null,30.01,35,32,null,"Julio - Agosto",62,null,null,"Mensual",30]
[null,null,null,null,null,"Septiembre - Octubre",61]
[null,null,null,null,null,"Noviembre - Diciembre",61]
[]
[null,null,null,null,null,"Enero",1]
[null,null,null,null,null,"Febrero",2]
[null,null,null,null,null,"Marzo",3]
[null,null,null,null,null,"Abril",4]
[null,null,null,null,null,"Mayo",5]
[null,null,null,null,null,"Junio",6]
[null,null,null,null,null,"Julio",7]
[null,null,null,null,null,"Agosto",8]
[null,null,null,null,null,"Septiembre",9]
[null,null,null,null,null,"Octubre",10]
[null,null,null,null,null,"Noviembre",11]
[null,null,null,null,null,"Diciembre",12]